{"text_format":"1","workbook":"xlsx","n_sheets":12,"sheets":["Tableau de bord","Décompte général","Amortissement","Tutoriel","Ressources",">>>","<<<","Informations oeuvre","Base de données ayants droit","Matrice décompte auteur.e","Matrice décompte RNPP","Matrice décompte amortissement"],"not_rendered":{"charts":0,"images":10,"macros":1,"external_links":0,"defined_names":22,"comments":0,"pivot_tables":0},"unopened":[],"bounds":{"document_bytes":16777216,"sheet_cells":100000,"rows_first":2000,"rows_last":500,"rows_between":2000,"halvings":0,"cell_chars":16384,"cell_head_chars":4096},"cells_cut":0,"cells_raw":0,"read":"whole","date_system":"1900"}

{"sheet":"Tableau de bord","index":0,"n_rows":19,"n_cols":11,"rows_kept":19,"cut":false,"hidden":false,"merged":[]}
[]
[]
[]
[]
[]
[null,null,null,null,"\n"]
[]
[]
[]
[]
[]
[]
[]
[null,null,null,null,null,null,null,null,null,null,0]
[null,null,null,null,null,null,null,null,null,null,"2025-12-31"]
[]
[]
[]
[null,false]

{"sheet":"Décompte général","index":1,"n_rows":124,"n_cols":18,"rows_kept":124,"cut":false,"hidden":false,"merged":[]}
[]
[]
[]
[]
[]
[null,null,null,null,null,null,null,null,null,null,null,null,"LÉGENDE DES COULEURS DE REMPLISSAGE"]
[null,{"$f":"'Informations oeuvre'!C2","v":"ŒUVRE"},null,null,null,null,null,null,null,{"$f":"\"Période arrétée au : \"&TEXT('Informations oeuvre'!C10,\"jj/mm/aaaa\")","v":"Période arrétée au : 31.12.2025"}]
[null,{"$f":"'Informations oeuvre'!C7","v":"[à compléter]"},null,null,null,null,null,null,null,null,null,null,2,"Variables à compléter à partir des relevés d'exploitation des mandataires, voir la section tutoriel pour plus de détail",null,null,"Variables à compléter à partir des relevés d'exploitation des mandataires, voir la section tutoriel pour plus de détail"]
[null,null,null,null,null,null,null,null,null,null,null,null,null,"Lignes qui concernent les auteur.e.s, voir la section tutoriel pour plus de détail",null,null,"Lignes qui concernent les auteur.e.s, voir la section tutoriel pour plus de détail"]
[]
[null,"RECETTES ISSUES DU PLAN DE FINANCEMENT"]
[null,"MINIMA GARANTIS SUR EXPLOITATION HORS GESTION COLLECTIVE"]
[null,null,"Mandataire","Territoire","Exploitation","Montant","Gestion individuelle"]
[null,null,"[à compléter]","[à compléter]","[à compléter]",0,0,null,null,{"$f":"+F14*G14","v":0}]
[null,null,"[à compléter]","[à compléter]","[à compléter]",0,0,null,null,{"$f":"F15*G15","v":0}]
[null,null,"RNPP-A sur minimas garantis",null,null,null,null,null,null,{"$f":"+SUM(J14:J15)","v":0}]
[]
[null,"PREVENTES INTERNATIONAL"]
[null,null,"Acheteur","Territoire","Exploitation","Montant","Gestion individuelle"]
[null,null,"[à compléter]","[à compléter]","[à compléter]",0,0,null,null,{"$f":"+F20*G20","v":0}]
[null,null,"[à compléter]","[à compléter]","[à compléter]",0,0,null,null,{"$f":"F21*G21","v":0}]
[null,null,"Total encaissement brut",null,null,null,null,null,null,0]
[null,null,"Commission de distribution",null,null,null,0.3,null,null,{"$f":"J18*-G23","v":0}]
[null,null,"Frais d'exploitation usuels forfaitisés (5%)",null,null,null,null,null,null,{"$f":"J18*-5%","v":0}]
[null,null,"Frais d'exploitation non usuels (opposés au réel)",null,null,null,null,null,null,0]
[null,null,"RNPP-A sur préventes internationales",null,null,null,null,null,null,{"$f":"+SUM(J22:J25)","v":0}]
[]
[null,"COPRODUCTIONS INTERNATIONALES"]
[null,null,"Société","Territoire",null,"Apport","Gestion individuelle"]
[null,null,"[à compléter]","[à compléter]","[à compléter]",0,0,null,null,{"$f":"F30*G30","v":0}]
[null,null,"[à compléter]","[à compléter]","[à compléter]",0,0,null,null,{"$f":"F31*G31","v":0}]
[null,null,"Apports des coproducteurs considérés en RNPP-A forfaitaire",null,null,null,null,null,null,{"$f":"SUM(J30:J31)","v":0},null,null,"Dans ce cas, la part de recette du coproducteur étranger est à déduire des RNPP-A sur l'international"]
[]
[]
[null,"RECETTES ISSUES DE L'EXPLOITATION",null,null,null,null,null,"ANTÉRIEUR","PÉRIODE","CUMUL"]
[null,"1/ EXPLOITATION CINÉMA FRANCE",null,null,null,null,"[DISTRIBUTEUR]"]
[null,null,"Prix hors taxes (net de TVA et TSA) payé par le public ",null,null,null,null,0,{"$f":"J37-H37","v":0},0,null,null,"Dans la pratique, le prix public peut-être déterminé ur la base RBD x2"]
[]
[null,null,"Prix hors taxes (net de TVA et TSA) payé par le public jusqu'à amortissement",null,null,null,null,0,{"$f":"+J39-H39","v":0},0,null,null,"A compléter uniquement au moment du passage du point d'amortissement"]
[null,null,"Prix hors taxes (net de TVA et TSA) payé par le public après amortissement",null,null,null,null,0,{"$f":"J40-H40","v":0},{"$f":"J37-J39","v":0}]
[]
[null,null,"Recette brute distributeur",null,null,null,null,0,{"$f":"J42-H42","v":0},{"$f":"+SUM(J37:J37)","v":0}]
[null,null,"Commission de distribution",null,null,null,0.3,0,0,{"$f":"J42*-G43","v":0}]
[null,null,"Frais d'exploitation usuels (opposés au réel ou forfaitisés)",null,null,null,null,0,0,0,null,null,"Forfait de 5% applicable automatiquement pour les auteur.s, en pratique souvent repris pour les autres ayants droits"]
[null,null,"Frais d'exploitation non usuels (opposés au réel)",null,null,null,null,0,0,0]
[null,null,"Minimum garanti",null,null,null,0,0,0,0,null,null,"Le cas échéant, compléter en case G le minimum garanti (en positif)"]
[null,null,"Recette nette part producteur cinéma commercial France (après MG)",null,null,null,null,0,0,{"$f":"SUM(J42:J46)","v":0}]
[]
[null,"2/ EXPLOITATION VIDÉO FRANCE",null,null,null,null,"[DISTRIBUTEUR]",null,null,null,null,null,"Peut être pris en charge par organisme de gestion collective pour les auteur.e.s selon certaines conditions"]
[null,null,"Chiffre d'affaires net éditeur",null,null,null,null,0,{"$f":"J50-H50","v":0},0]
[]
[null,null,"Chiffre d'affaires net éditeur jusqu'à amortissement",null,null,null,null,0,{"$f":"+J52-H52","v":0},0,null,null,"A compléter uniquement au moment du passage du point d'amortissement"]
[null,null,"Chiffre d'affaires net éditeur après amortissement",null,null,null,null,0,{"$f":"J53-H53","v":0},{"$f":"J50-J52","v":0}]
[]
[null,null,"Chiffre d'affaires brut éditeur",null,null,null,null,0,{"$f":"+J55-H55","v":0},0]
[null,null,"Commission de distribution",null,null,null,0.3,0,{"$f":"J56-H56","v":0},{"$f":"+J55*-G56","v":0},null,null,"Modifier en cas de royalties"]
[null,null,"Frais d'exploitation usuels (opposés au réel ou forfaitisés)",null,null,null,null,0,{"$f":"J57-H57","v":0},0,null,null,"Forfait de 5% applicable automatiquement pour les auteur.s, en pratique souvent repris pour les autres ayants droits"]
[null,null,"Frais d'exploitation non usuels (opposés au réel)",null,null,null,null,0,{"$f":"J58-H58","v":0},0]
[null,null,"Minimum garanti",null,null,null,0,0,{"$f":"J59-H59","v":0},{"$f":"-G59","v":0},null,null,"Le cas échéant, compléter en case G le minimum garanti (en positif)"]
[null,null,"Recette nette part producteur vidéo France (après MG)",null,null,null,null,0,{"$f":"J60-H60","v":0},{"$f":"SUM(J50:J59)","v":0}]
[]
[null,"3/ EXPLOITATION VOD FRANCE",null,null,null,null,"[DISTRIBUTEUR]",null,null,null,null,null,"Pris en charge par organisme de gestion collective pour les auteur.e.s"]
[null,null,"Chiffre d'affaires net éditeur",null,null,null,null,0,{"$f":"J63-H63","v":0},0]
[]
[null,null,"Chiffre d'affaires brut éditeur",null,null,null,null,0,{"$f":"+J65-H65","v":0},0]
[null,null,"Commission de distribution",null,null,null,0.3,0,{"$f":"+J66-H66","v":0},{"$f":"+J65*-G66","v":0}]
[null,null,"Frais d'exploitation usuels (opposés au réel ou forfaitisés)",null,null,null,null,0,{"$f":"J67-H67","v":0},0,null,null,"Forfait de 5% applicable automatiquement pour les auteur.s, en pratique souvent repris pour les autres ayants droits"]
[null,null,"Frais d'exploitation non usuels (opposés au réel)",null,null,null,null,0,{"$f":"J68-H68","v":0},0]
[null,null,"Minimum garanti",null,null,null,0,0,{"$f":"J69-H69","v":0},{"$f":"-G69","v":0},null,null,"Le cas échéant, compléter en case G le minimum garanti (en positif)"]
[null,null,"Recette nette part producteur VOD France (après MG)",null,null,null,null,0,{"$f":"J70-H70","v":0},{"$f":"SUM(J63:J69)","v":0}]
[null,null,null,null,null,null,null,null,null,null,null,null,"En cas de MG crossé, ajouter une ligne somme des RNPP crossés et MG crossés puis adpater les décomptes en conséquence"]
[null,"4/ EXPLOITATION TV FRANCE",null,null,null,null,"[DISTRIBUTEUR]",null,null,null,null,null,"Pris en charge par organisme de gestion collective pour les auteur.e.s"]
[null,null,"[Chaîne]",null,null,null,0,0,{"$f":"J73-H73","v":0},0,null,null,"Indiquer le montant de la vente en colonne G, et le montant total encaissé en colonne J"]
[null,null,"Total Recette brute ",null,null,null,null,0,0,{"$f":"+SUM(J73:J73)","v":0}]
[null,null,"Commission de distribution",null,null,null,0.3,0,0,{"$f":"J74*-G75","v":0}]
[null,null,"Frais d'exploitation usuels (opposés au réel ou forfaitisés)",null,null,null,null,0,0,0,null,null,"Forfait de 5% applicable automatiquement pour les auteur.s, en pratique souvent repris pour les autres ayants droits"]
[null,null,"Frais d'exploitation non usuels (opposés au réel)",null,null,null,null,0,0,0]
[null,null,"Recette nette part producteur TV France",null,null,null,null,0,0,{"$f":"SUM(J74:J77)","v":0}]
[]
[null,"5/ EXPLOITATION SVOD FRANCE",null,null,null,null,"[DISTRIBUTEUR]",null,null,null,null,null,"Pris en charge par organisme de gestion collective pour les auteur.e.s"]
[null,null,"[Plateforme]",null,null,null,0,0,{"$f":"J81-H81","v":0},0,null,null,"Indiquer le montant de la vente en colonne G, et le montant total encaissé en colonne J"]
[null,null,"Total Recette brute ",null,null,null,null,0,0,{"$f":"+SUM(J81:J81)","v":0}]
[null,null,"Commission de distribution ",null,null,null,0.3,0,0,{"$f":"+J82*-G83","v":0}]
[null,null,"Frais d'exploitation usuels (opposés au réel ou forfaitisés)",null,null,null,null,0,0,0,null,null,"Forfait de 5% applicable automatiquement pour les auteur.s, en pratique souvent repris pour les autres ayants droits"]
[null,null,"Frais d'exploitation non usuels (opposés au réel)",null,null,null,null,0,0,0]
[null,null,"Recette nette part producteur SVOD France",null,null,null,null,0,0,{"$f":"SUM(J82:J85)","v":0}]
[]
[null,"6/ AUTRES EXPLOITATIONS FRANCE",null,null,null,null,"[DISTRIBUTEUR]"]
[null,null,"Recette brute ",null,null,null,null,0,{"$f":"J89-H89","v":0},0,null,null,"Attention, en cas de recettes sur l'exploitation littéraire, la base de répartiton est le pric public HT"]
[null,null,"Commission de distribution ",null,null,null,0.3,0,{"$f":"J90-H90","v":0},{"$f":"+J89*-G90","v":0}]
[null,null,"Frais d'exploitation usuels (opposés au réel ou forfaitisés)",null,null,null,null,0,{"$f":"J91-H91","v":0},{"$f":"+J89","v":0},null,null,"Forfait de 5% applicable automatiquement pour les auteur.s, en pratique souvent repris pour les autres ayants droits"]
[null,null,"Frais d'exploitation non usuels (opposés au réel)",null,null,null,null,0,{"$f":"J92-H92","v":0},0]
[null,null,"Recette nette part producteur autres exploitations France",null,null,null,null,0,{"$f":"J93-H93","v":0},{"$f":"SUM(J89:J92)","v":0}]
[]
[null,null,"Recette nette part producteur autres exploitations France jusqu'à amortissement",null,null,null,null,0,{"$f":"+J95-H95","v":0},0,null,null,"A compléter uniquement au moment du passage du point d'amortissement"]
[null,null,"Recette nette part producteur autres exploitations France après amortissement",null,null,null,null,0,{"$f":"J96-H96","v":0},{"$f":"J93-J95","v":0}]
[]
[null,"7/ EXPLOITATION INTERNATIONALE HORS MERCHANDISING",null,null,null,null,"[DISTRIBUTEUR]",null,null,null,null,{"$f":"B98","v":"7/ EXPLOITATION INTERNATIONALE HORS MERCHANDISING"}]
[]
[null,"#","Acheteur","Territoire",null,"Exploitation","Montant vente",null,null,null,null,null,"Gestion individuelle","Encaissement","Commission","Frais usuels","Frais non","RNPP-A TOTAL"]
[null,null,null,null,null,null,null,null,null,null,null,null,null,"gest. individuelle",0.3,"forfaitisés (5%)","usuels"]
[null,1,"[à compléter]","[à compléter]",null,"[à compléter]","[à compléter]",0,{"$f":"J102-H102","v":0},0,null,null,0,{"$f":"J102*M102","v":0},{"$f":"N102*O101","v":0},{"$f":"+N102*5%","v":0},0,{"$f":"SUM(N102:Q102)","v":0}]
[null,2,"[à compléter]","[à compléter]",null,"[à compléter]","[à compléter]",0,{"$f":"J103-H103","v":0},0,null,null,0,{"$f":"J103*M103","v":0},{"$f":"N103*O101","v":0},{"$f":"+N103*5%","v":0},0,{"$f":"SUM(N103:Q103)","v":0}]
[null,null,"Total encaissement brut",null,null,null,null,0,{"$f":"J104-H104","v":0},{"$f":"SUM(J102:J103)","v":0},null,null,"RNPP-A International hors merchandising ",null,null,null,{"$f":"SUM(Q102:Q103)","v":0},{"$f":"SUM(R102:R103)","v":0}]
[]
[null,null,"Commission de distribution ",null,null,null,0.3,0,{"$f":"J106-H106","v":0},{"$f":"J104*-G106","v":0},null,null,"Mnimum garanti",null,0,null,null,{"$f":"-O106","v":0}]
[null,null,"Frais d'exploitation usuels (opposés au réel ou forfaitisés)",null,null,null,null,0,{"$f":"J107-H107","v":0},0,null,null,"RNPP-A International hors merchandising (après MG)",null,null,null,null,{"$f":"SUM(R104:R106)","v":0}]
[null,null,"Frais d'exploitation non usuels (opposés au réel)",null,null,null,null,0,{"$f":"J108-H108","v":0},0]
[null,null,"Minimum garanti",null,null,null,0,0,{"$f":"+J109-H109","v":0},{"$f":"-G109","v":0},null,null,"RNPP-A International hors merchandising (après MG) jusqu'à amortissement",null,null,null,null,0]
[null,null,"Recette nette part producteur international hors merchandising (après MG)",null,null,null,null,0,{"$f":"J110-H110","v":0},{"$f":"SUM(J104:J109)","v":0},null,null,"RNPP-A International hors merchandising (après MG) après amortissement",null,null,null,null,{"$f":"R107-R109","v":0}]
[]
[null,"8/ EXPLOITATION MERCHANDISING INTERNATIONALE",null,null,null,null,"[DISTRIBUTEUR]"]
[]
[null,"#","Acheteur","Territoire",null,null,"Montant vente",null,null,null,null,null,"Gestion individuelle","Encaissement","Commission","Frais usuels","Frais non","RNPP-A TOTAL"]
[null,null,null,null,null,null,null,null,null,null,null,null,null,"gest. individuelle",0.5,"forfaitisés (5%)","usuels"]
[null,1,"[à compléter]","[à compléter]",null,null,"[à compléter]",0,{"$f":"J116-H116","v":0},0,null,null,0,{"$f":"J116*M116","v":0},{"$f":"N116*O115","v":0},{"$f":"+N116*5%","v":0},0,{"$f":"SUM(N116:Q116)","v":0}]
[null,2,"[à compléter]","[à compléter]",null,null,"[à compléter]",0,{"$f":"J117-H117","v":0},0,null,null,0,{"$f":"J117*M117","v":0},{"$f":"N117*O115","v":0},{"$f":"+N117*5%","v":0},0,{"$f":"SUM(N117:Q117)","v":0}]
[null,null,"Total encaissement brut",null,null,null,null,0,{"$f":"J118-H118","v":0},{"$f":"SUM(J116:J117)","v":0},null,null,"RNPP-A Merchandising International",null,null,null,{"$f":"SUM(Q116:Q117)","v":0},{"$f":"SUM(R116:R117)","v":0}]
[]
[null,null,"Commission de distribution ",null,null,null,0.5,0,{"$f":"J120-H120","v":0},{"$f":"J118*-G120","v":0},null,null,"Mnimum garanti",null,0,null,null,{"$f":"-O120","v":0}]
[null,null,"Frais d'exploitation usuels (opposés au réel ou forfaitisés)",null,null,null,null,0,{"$f":"J121-H121","v":0},0,null,null,"RNPP-A Merchandising International (après MG)",null,null,null,null,{"$f":"SUM(R118:R120)","v":0}]
[null,null,"Frais d'exploitation non usuels (opposés au réel)",null,null,null,null,0,{"$f":"J122-H122","v":0},0]
[null,null,"Minimum garanti",null,null,null,0,0,{"$f":"+J123-H123","v":0},{"$f":"-G123","v":0},null,null,"RNPP-A Merchandising International (après MG) jusqu'à amortissement",null,null,null,null,0]
[null,null,"Recette nette part producteur merchandising international (après MG)",null,null,null,null,0,{"$f":"J124-H124","v":0},{"$f":"SUM(J118:J123)","v":0},null,null,"RNPP-A Merchandising International (après MG) après amortissement",null,null,null,null,{"$f":"R121-R123","v":0}]

{"sheet":"Amortissement","index":2,"n_rows":86,"n_cols":12,"rows_kept":86,"cut":false,"hidden":false,"merged":[[42,2,42,5],[7,1,8,6],[12,2,12,5],[13,2,13,6],[18,2,18,5],[19,2,19,6],[24,2,24,5],[25,2,25,6],[30,2,30,5],[31,2,31,6],[36,2,36,5],[37,2,37,6],[43,2,43,6],[48,2,48,5],[49,2,49,6],[54,2,54,5],[55,2,55,6]]}
[]
[]
[]
[null,{"$f":"'Informations oeuvre'!C2","v":"ŒUVRE"},null,null,null,null,null,null,null,{"$f":"\"Période arrétée au : \"&TEXT('Informations oeuvre'!C10,\"jj/mm/aaaa\")","v":"Période arrétée au : 31.12.2025"}]
[null,{"$f":"+'Informations oeuvre'!C7","v":"[à compléter]"}]
[]
[null,"CALCUL DE L'AMORTISSEMENT DE L'ŒUVRE"]
[null,"Selon l'accord professionnel sur la transparence des comptes d'exploitation \ndes oeuvres audiovisuelles du 6 juillet 2017"]
[]
[null,null,null,null,null,null,null,"ANTÉRIEUR","PÉRIODE","CUMUL"]
[]
[null,null,"Recettes nettes par producteur Cinéma France après MG",null,null,null,null,0,{"$f":"+J12-H12","v":0},{"$f":"IF('Décompte général'!J47>0,'Décompte général'!J47,0)","v":0}]
[null,null,"Reversements aux préfinanceurs visés aux points d, e et/ou i \nde l'article 5.1 de l'accord du 19 février 2016*",null,null,null,null,0,{"$f":"J13-H13","v":0},0]
[null,null,"Reversement aux auteurs au titre de la rémunération proportionnelle",null,null,null,null,0,{"$f":"J14-H14","v":0},0]
[null,null,"Rémunération complémentaires aux artistes interprètes",null,null,null,null,0,{"$f":"J15-H15","v":0},0]
[null,"Recettes Cinéma France en amortissement du coût du film ",null,null,null,null,null,{"$f":"SUM(H12:H15)","v":0},{"$f":"SUM(I12:I15)","v":0},{"$f":"SUM(J12:J15)","v":0}]
[]
[null,null,"Recettes nettes par producteur Vidéo France après MG",null,null,null,null,0,{"$f":"+J18-H18","v":0},{"$f":"IF('Décompte général'!J60>0,'Décompte général'!J60,0)","v":0}]
[null,null,"Reversements aux préfinanceurs visés aux points d, e et/ou i \nde l'article 5.1 de l'accord du 19 février 2016*",null,null,null,null,0,{"$f":"J19-H19","v":0},0]
[null,null,"Reversement aux auteurs au titre de la rémunération proportionnelle",null,null,null,null,0,{"$f":"J20-H20","v":0},0]
[null,null,"Rémunération complémentaires aux artistes interprètes",null,null,null,null,0,{"$f":"J21-H21","v":0},0]
[null,"Recettes Vidéo France en amortissement du coût du film ",null,null,null,null,null,{"$f":"SUM(H18:H21)","v":0},{"$f":"SUM(I18:I21)","v":0},{"$f":"SUM(J18:J21)","v":0}]
[]
[null,null,"Recettes nettes par producteur VOD France après MG",null,null,null,null,0,{"$f":"+J24-H24","v":0},{"$f":"IF('Décompte général'!J70>0,'Décompte général'!J70,0)","v":0}]
[null,null,"Reversements aux préfinanceurs visés aux points d, e et/ou i \nde l'article 5.1 de l'accord du 19 février 2016*",null,null,null,null,0,{"$f":"J25-H25","v":0},0]
[null,null,"Reversement aux auteurs au titre de la rémunération proportionnelle",null,null,null,null,0,{"$f":"J26-H26","v":0},0]
[null,null,"Rémunération complémentaires aux artistes interprètes",null,null,null,null,0,{"$f":"J27-H27","v":0},0]
[null,"Recettes VOD France en amortissement du coût du film ",null,null,null,null,null,{"$f":"SUM(H24:H27)","v":0},{"$f":"SUM(I24:I27)","v":0},{"$f":"SUM(J24:J27)","v":0}]
[]
[null,null,"Recettes nettes par producteur TV France après MG",null,null,null,null,0,{"$f":"+J30-H30","v":0},{"$f":"IF('Décompte général'!J78>0,'Décompte général'!J78,0)","v":0}]
[null,null,"Reversements aux préfinanceurs visés aux points d, e et/ou i \nde l'article 5.1 de l'accord du 19 février 2016*",null,null,null,null,0,{"$f":"J31-H31","v":0},0]
[null,null,"Reversement aux auteurs au titre de la rémunération proportionnelle",null,null,null,null,0,{"$f":"J32-H32","v":0},0]
[null,null,"Rémunération complémentaires aux artistes interprètes",null,null,null,null,0,{"$f":"J33-H33","v":0},0]
[null,"Recettes TV France en amortissement du coût du film ",null,null,null,null,null,{"$f":"SUM(H30:H33)","v":0},{"$f":"SUM(I30:I33)","v":0},{"$f":"SUM(J30:J33)","v":0}]
[]
[null,null,"Recettes nettes par producteur SVOD France après MG",null,null,null,null,0,{"$f":"+J36-H36","v":0},{"$f":"IF('Décompte général'!J86>0,'Décompte général'!J86,0)","v":0}]
[null,null,"Reversements aux préfinanceurs visés aux points d, e et/ou i \nde l'article 5.1 de l'accord du 19 février 2016*",null,null,null,null,0,{"$f":"J37-H37","v":0},0]
[null,null,"Reversement aux auteurs au titre de la rémunération proportionnelle",null,null,null,null,0,{"$f":"J38-H38","v":0},0]
[null,null,"Rémunération complémentaires aux artistes interprètes",null,null,null,null,0,{"$f":"J39-H39","v":0},0]
[null,"Recettes SVOD France en amortissement du coût du film ",null,null,null,null,null,{"$f":"SUM(H36:H39)","v":0},{"$f":"SUM(I36:I39)","v":0},{"$f":"SUM(J36:J39)","v":0}]
[]
[null,null,"Recettes nettes par producteur Autres exploitations France après MG",null,null,null,null,0,{"$f":"+J42-H42","v":0},{"$f":"IF('Décompte général'!J93>0,'Décompte général'!J93,0)","v":0}]
[null,null,"Reversements aux préfinanceurs visés aux points d, e et/ou i \nde l'article 5.1 de l'accord du 19 février 2016*",null,null,null,null,0,{"$f":"J43-H43","v":0},0]
[null,null,"Reversement aux auteurs au titre de la rémunération proportionnelle",null,null,null,null,0,{"$f":"J44-H44","v":0},0]
[null,null,"Rémunération complémentaires aux artistes interprètes",null,null,null,null,0,{"$f":"J45-H45","v":0},0]
[null,"Recettes Autres exploitations France en amortissement du coût du film ",null,null,null,null,null,{"$f":"SUM(H42:H45)","v":0},{"$f":"SUM(I42:I45)","v":0},{"$f":"SUM(J42:J45)","v":0}]
[]
[null,null,"Recettes nettes par producteur International hors merchandising après MG",null,null,null,null,0,{"$f":"+J48-H48","v":0},{"$f":"IF('Décompte général'!J110>0,'Décompte général'!J110,0)","v":0}]
[null,null,"Reversements aux préfinanceurs visés aux points d, e et/ou i \nde l'article 5.1 de l'accord du 19 février 2016*",null,null,null,null,0,{"$f":"J49-H49","v":0},0]
[null,null,"Reversement aux auteurs au titre de la rémunération proportionnelle",null,null,null,null,0,{"$f":"J50-H50","v":0},0]
[null,null,"Rémunération complémentaires aux artistes interprètes",null,null,null,null,0,{"$f":"J51-H51","v":0},0]
[null,"Recettes Video/VOD/TV/SVOD International en amortissement du coût du film ",null,null,null,null,null,{"$f":"SUM(H48:H51)","v":0},{"$f":"SUM(I48:I51)","v":0},{"$f":"SUM(J48:J51)","v":0}]
[]
[null,null,"Recettes nettes par producteur Merchandising International après MG",null,null,null,null,0,{"$f":"+J54-H54","v":0},{"$f":"IF('Décompte général'!J124>0,'Décompte général'!J124,0)","v":0}]
[null,null,"Reversements aux préfinanceurs visés aux points d, e et/ou i \nde l'article 5.1 de l'accord du 19 février 2016*",null,null,null,null,0,{"$f":"J55-H55","v":0},0]
[null,null,"Reversement aux auteurs au titre de la rémunération proportionnelle",null,null,null,null,0,{"$f":"J56-H56","v":0},0]
[null,null,"Rémunération complémentaires aux artistes interprètes",null,null,null,null,0,{"$f":"J57-H57","v":0},0]
[null,"Recettes Merchandising International en amortissement du coût du film ",null,null,null,null,null,{"$f":"SUM(H54:H57)","v":0},{"$f":"SUM(I54:I57)","v":0},{"$f":"SUM(J54:J57)","v":0}]
[]
[]
[null,"Sommes des recettes encaissées pour toutes les exploitations",null,null,null,null,null,{"$f":"H16+H22+H28+H34+H40+H46+H52+H58","v":0},{"$f":"I16+I22+I28+I34+I40+I46+I52+I58","v":0},{"$f":"J16+J22+J28+J34+J40+J46+J52+J58","v":0}]
[]
[null,null,"Frais juridiques, judiciaires, comptables (au titre de l'œuvre)",null,null,null,null,0,{"$f":"J63-H63","v":0},0]
[null,null,"Renouvellement/renégociation droits auteur (au titre de l'œuvre)",null,null,null,null,0,{"$f":"J64-H64","v":0},0]
[null,null,"Renouvellement/extension des élements additionnels (au titre de l'œuvre)",null,null,null,null,0,{"$f":"J65-H65","v":0},0]
[null,null,"Frais de stockage, conservation, entretien du support, restauration",null,null,null,null,0,{"$f":"J66-H66","v":0},0]
[null,"RNPP TOTALES",null,null,null,null,null,{"$f":"SUM(H61:H66)","v":0},{"$f":"SUM(I61:I66)","v":0},{"$f":"SUM(J61:J66)","v":0}]
[]
[null,"APPORT PRODUCTEUR après prise en compte du crédit d'impôt (cf. détail ci-dessous)",null,null,null,null,null,0,{"$f":"+J69-H69","v":0},{"$f":"G85","v":0}]
[]
[null,"RNPP TOTALES NET DE L'APPORT PRODUCTEUR ",null,null,null,null,null,{"$f":"H67-H69","v":0},{"$f":"+I67-I69","v":0},{"$f":"+J67-J69","v":0}]
[]
[null,"RNPP À REPARTIR",null,null,null,{"$f":"IF(J73>0,\"ŒUVRE AMORTIE\",\"ŒUVRE NON AMORTIE\")","v":"ŒUVRE NON AMORTIE"},null,0,{"$f":"J73-H73","v":0},{"$f":"IF(J71>0,J71,0)","v":0},null,"Sous déduction éventuel des rémunérations complémentaires revenant aux auteurs et aux artistes/interprètes après amortissement"]
[]
[null,"* d = autres apports français (région, PROCIREP…) / e = SOFICA et autres apports financiers / i = autres financements étrangers"]
[]
[]
[null,"Apport producteur constaté au rendu des comptes définitifs",null,null,null,null,0]
[]
[null,null,"Montant du crédit d'impôt de l'œuvre",null,null,null,0]
[null,null,"Part de financement du/des diffuseurs français "]
[null,null,"dans l'œuvre (plafonnée à 75%)**",null,null,null,0]
[null,null,"Montant du crédit d'impôt venant couvrir l'apport producteur",null,null,null,{"$f":"G80*G82","v":0}]
[]
[null,"Apport producteur constaté après prise en compte du crédit d'impôt",null,null,null,null,{"$f":"G78-G83","v":0}]
[null,"**selon les modalités de l'article 6.4 de l'accord du 19 février 2016"]

{"sheet":"Tutoriel","index":3,"n_rows":53,"n_cols":5,"rows_kept":53,"cut":false,"hidden":false,"merged":[]}
[]
[]
[]
[]
[]
[]
[]
[]
[]
[]
[]
[]
[]
[]
[]
[]
[]
[]
[]
[]
[]
[]
[]
[]
[]
[null,"SOMMAIRE"]
[]
[null,"     AVERTISSEMENT – CONDITIONS D’UTILISATION"]
[null,"     PRÉAMBULE : EXCEL VBA"]
[null,"     ÉTAPE 1 : INFORMATIONS DU FILM"]
[null,"     ÉTAPE 2 : LES AYANTS DROIT"]
[null,null,"2.1 Introduction"]
[null,null,"2.2 Ajouter un ayant droit"]
[null,null,null,"2.2.1 Cadre « Informations »"]
[null,null,"2.3 Modifier un ayant droit"]
[null,null,"2.4 Supprimer un ayant droit"]
[null,"     ÉTAPE 3 : LES DÉCOMPTES"]
[null,null,"3.1 Ajouter une base de décompte"]
[null,null,"3.2 Présentation des bases de décompte"]
[null,null,null,"3.2.1 Présentation du récapitulatif des droits (page 1)"]
[null,null,null,"3.2.2 Présentation des décomptes ayants droit (page 2 et 3)"]
[null,null,"3.3 Ajuster une base de décompte"]
[null,null,null,"3.3.1 Fonctionnement général"]
[null,null,null,"3.3.2 Exemples pratiques d’ajustement de décompte"]
[null,null,null,null,"Exemple 1. Changement d’une base de calcul"]
[null,null,null,null,"Exemple 2. Crosscolatéralisation entre différents supports de recettes"]
[null,null,null,null,"Exemple 3. Ajout d’un support de recette spécifique"]
[null,null,null,null,"Exemple 4. Ajout d’un autre type de recette"]
[null,null,null,null,"Exemple 5. Changement d’une commission ou du plafond de frais pour un ayant droit."]
[]
[null,"     ÉTAPE 4 : NOUVELLE PÉRIODE"]
[null,"     ÉTAPE 5 : COMPLÉTER LE DÉCOMPTE GÉNÉRAL"]
[null,"     ÉTAPE 6 : EXPORTER LES DÉCOMPTES"]

{"sheet":"Ressources","index":4,"n_rows":301,"n_cols":9,"rows_kept":301,"cut":false,"hidden":false,"merged":[[268,6,268,7],[257,6,257,7],[258,6,258,7],[259,6,259,7],[260,6,260,7],[261,6,261,7],[262,6,262,7],[263,6,263,7],[264,6,264,7],[265,6,265,7],[266,6,266,7],[267,6,267,7],[280,6,280,7],[269,6,269,7],[270,6,270,7],[271,6,271,7],[272,6,272,7],[273,6,273,7],[274,6,274,7],[275,6,275,7],[276,6,276,7],[277,6,277,7],[278,6,278,7],[279,6,279,7],[292,6,292,7],[281,6,281,7],[282,6,282,7],[283,6,283,7],[284,6,284,7],[285,6,285,7],[286,6,286,7],[287,6,287,7],[288,6,288,7],[289,6,289,7],[290,6,290,7],[291,6,291,7],[293,6,293,7],[294,6,294,7],[295,6,295,7],[296,6,296,7],[297,6,297,7]]}
[]
[]
[]
[]
[]
[]
[]
[]
[]
[]
[]
[]
[]
[]
[]
[]
[]
[]
[]
[]
[]
[]
[]
[]
[]
[]
[]
[]
[]
[]
[]
[]
[]
[]
[]
[]
[]
[]
[]
[]
[]
[]
[]
[]
[]
[]
[]
[]
[]
[]
[]
[]
[]
[]
[]
[]
[]
[]
[]
[]
[]
[]
[]
[]
[]
[]
[]
[]
[]
[]
[]
[]
[]
[]
[]
[]
[]
[]
[]
[]
[]
[]
[]
[]
[]
[]
[]
[]
[]
[]
[]
[]
[]
[]
[]
[]
[]
[]
[]
[]
[]
[]
[]
[]
[]
[]
[]
[]
[]
[]
[]
[]
[]
[]
[]
[]
[]
[]
[]
[]
[]
[]
[]
[]
[]
[]
[]
[]
[]
[]
[]
[]
[]
[]
[]
[]
[]
[]
[]
[]
[]
[]
[]
[]
[]
[]
[]
[]
[]
[]
[]
[]
[]
[]
[]
[]
[]
[]
[]
[]
[]
[]
[]
[]
[]
[]
[]
[]
[]
[]
[]
[]
[]
[]
[]
[]
[]
[]
[]
[]
[]
[]
[]
[]
[]
[]
[]
[]
[]
[]
[]
[]
[]
[]
[]
[]
[]
[]
[]
[]
[]
[]
[]
[]
[]
[]
[]
[]
[]
[]
[]
[]
[]
[]
[]
[]
[]
[]
[]
[]
[]
[]
[]
[]
[]
[]
[]
[]
[]
[]
[]
[]
[]
[]
[]
[]
[]
[]
[]
[]
[]
[]
[]
[]
[]
[]
[]
[]
[]
[]
[]
[]
[]
[]
[]
[]
[]
[null,null,null,null,null,null,"Fiction, docu et SV",null,"Animation"]
[null,"Europe de l'Ouest"]
[null,"France",null,null,null,"OGC",20,null,20]
[null,"Allemagne + Autriche",null,null,null,null,10.87,10.87,14.09]
[null,"Belgique",null,null,null,"OGC",10.32,10.32,3.34]
[null,"Espagne",null,null,null,"OGC",2.4900000000000002,2.4900000000000002,3.55]
[null,"Grande-Bretagne + Irlande",null,null,null,null,8.07,8.07,8.18]
[null,"Grèce + Chypre + Malte",null,null,null,null,0.32,0.32,0.2]
[null,"Italie",null,null,null,"OGC",4.8600000000000003,4.8600000000000003,8.8000000000000007]
[null,"Pays-Bas + Luxembourg",null,null,null,"OGC",2.19,2.19,1.98]
[null,"Portugal",null,null,null,null,0.52,0.52,0.63]
[null,"Scandinavie + Islande",null,null,null,null,2.87,2.87,3.42]
[null,"Suisse",null,null,null,"OGC",4.49,4.49,1.69]
[null,"Europe de l'Est"]
[null,"Hongrie",null,null,null,null,0.46,null,0.32]
[null,"Pays Baltes (Lituanie, Estonie, Lettonie)",null,null,null,null,0.15,null,0.18]
[null,"Pologne",null,null,null,"OGC",1.1100000000000001,null,0.93]
[null,"République Tchèque + Slovaquie",null,null,null,null,0.84,null,0.54]
[null,"Roumanie + Croatie + Bulgarie + Slovénie + autres",null,null,null,null,0.73,null,0.42]
[null,"Ruseeis et ex-CEI (Ukraine, Biélorussie, autres)",null,null,null,null,2.68,null,1.6]
[null,"Turquie",null,null,null,null,0.6,null,0.63]
[null,"Amérique du Nord"]
[null,"Canada",null,null,null,null,6.01,null,5.59]
[null,"Dont Canada francophone",null,null,null,"OGC",3.01,null,2.8]
[null,"Etats-Unis",null,null,null,null,6.3,null,11.16]
[null,"Amérique Latine"]
[null,"Argentine",null,null,null,"OGC",0.16,null,0.13]
[null,"Autres pays d'Amérique latine",null,null,null,null,0.16,null,0.26]
[null,"Brésil ",null,null,null,null,0.89,null,0.52]
[null,"Mexique",null,null,null,null,0.25,null,0.25]
[null,"Asie / Océanie"]
[null,"Autralie + Nouvelle-Zélande",null,null,null,null,1.08,null,1.75]
[null,"Chine + Hong Kong + Taïwan",null,null,null,null,2.1,null,1.26]
[null,"Corée du Sud",null,null,null,null,0.47,null,0.61]
[null,"Inde",null,null,null,null,0.16,null,1.76]
[null,"Japon",null,null,null,null,1.68,null,1.1100000000000001]
[null,"Singapour + Indonésie + Autres pays asiatiques",null,null,null,null,1.1599999999999999,null,2.4500000000000002]
[null,"Autres  "]
[null,"Afrique",null,null,null,null,3.13,null,0.96]
[null,"Moyen-Orient",null,null,null,null,2.88,null,1.72]
[null,"Total poids pays en gestion collective",null,null,null,"OGC",{"$f":"+SUMIF(F260:F297,\"OGC\",G260:H297)-0.01","v":48.62},null,{"$f":"+SUMIF(F260:F297,\"OGC\",I260:I297)","v":43.219999999999992}]
[]
[]
[null,"Australie + Nouvelle-Zélande"]

{"sheet":">>>","index":5,"n_rows":0,"n_cols":0,"rows_kept":0,"cut":false,"hidden":false,"merged":[]}

{"sheet":"<<<","index":6,"n_rows":0,"n_cols":0,"rows_kept":0,"cut":false,"hidden":false,"merged":[]}

{"sheet":"Informations oeuvre","index":7,"n_rows":11,"n_cols":3,"rows_kept":11,"cut":false,"hidden":false,"merged":[]}
[]
[null,"Titre ","ŒUVRE"]
[null,"Réalisation","[à compléter]"]
[null,"Format / Saison","[à compléter]"]
[null,"N°ISAN","[à compléter]"]
[null,"Production","[à compléter]"]
[null,"Adresse","[à compléter]"]
[null,"CP et ville","[à compléter]"]
[null,"Période",{"$f":"'Tableau de bord'!K15","v":"2025-12-31"}]
[null,null,{"$f":"TEXT(C9,\"j.M.aaaa\")","v":"31.12.2025"}]
[null,"N° Répartition",{"$f":"'Tableau de bord'!K14","v":0}]

{"sheet":"Base de données ayants droit","index":8,"n_rows":42,"n_cols":18,"rows_kept":42,"cut":false,"hidden":false,"merged":[]}
["#","NOM","Prénom","Qualité","Agence artistique","Adresse","Code postal et ville","Mail de contact 1","Mail de contact 2","Mail de contact 3","Mail de contact 4","Contrat signé le ","Avenant(s)","Identifiant",null,4,"AD3","Ne pas modifier"]
[{"$f":"N2","v":"AD1"},"EXEMPLE 1",null,"Coproducteur",null,"14 boulevard des Capucines","75009 PARIS","exemple1@mail.com","exemple1@mail.fr","exemple1@mail1.com","exemple1@mail1.fr","28/12/1895",true,"AD1"]
[{"$f":"N3","v":"AD2"},"EXEMPLE 2",null,"Auteur.e scénariste","Etoile","Sunset Boulevard","75009 Paris","exemple2@mail.com","exemple2@mail.fr","exemple2@mail2.com","exemple2@mail2.fr","18/04/1951",true,"AD2"]
[0]
[0]
[0]
[0]
[0]
[0]
[0]
[0]
[0]
[0]
[0]
[0]
[0]
[0]
[0]
[0]
[0]
[0]
[0]
[0]
[0]
[0]
[0]
[0]
[0]
[0]
[0]
[0]
[0]
[0]
[0]
[0]
[0]
[0]
[0]
[0]
[0]
[0]
[0]

{"sheet":"Matrice décompte auteur.e","index":9,"n_rows":394,"n_cols":21,"rows_kept":394,"cut":false,"hidden":false,"merged":[[12,1,12,9],[1,1,1,4],[2,1,2,4],[3,1,3,4],[4,1,4,4],[11,1,11,9],[266,2,266,5],[13,1,13,9],[14,1,14,9],[238,1,239,6],[242,2,242,5],[243,2,243,6],[248,2,248,5],[249,2,249,6],[254,2,254,5],[255,2,255,6],[260,2,260,5],[261,2,261,6],[285,2,285,6],[267,2,267,6],[272,2,272,5],[273,2,273,6],[278,2,278,5],[279,2,279,6],[284,2,284,5]]}
[]
[null,"Expéditeur ",null,null,null,null,null,null,"Destinataire"]
[null,{"$f":"'Informations oeuvre'!C7","v":"[à compléter]"},null,null,null,null,null,null,{"$f":"N3&\" \"&+VLOOKUP($N$3,'Base de données ayants droit'!B:Y,2,FALSE)","v":"Exemple 2 "},null,null,null,"Ayant droit ","Exemple 2"]
[null,{"$f":"'Informations oeuvre'!C8","v":"[à compléter]"},null,null,null,null,null,null,{"$f":"+VLOOKUP($N$3,'Base de données ayants droit'!B:Y,5,FALSE)","v":"Sunset Boulevard"},null,null,null,"Ne pas modifier cette cellule"]
[null,{"$f":"'Informations oeuvre'!C9","v":"2025-12-31"},null,null,null,null,null,null,{"$f":"+VLOOKUP($N$3,'Base de données ayants droit'!B:Y,6,FALSE)","v":"75009 Paris"}]
[]
[null,{"$f":"'Informations oeuvre'!C2","v":"ŒUVRE"},null,null,null,null,null,{"$f":"\"DÉCOMPTE N°\"&'Informations oeuvre'!C11","v":"DÉCOMPTE N°0"}]
[null,{"$f":"\"Format / Saison : \"&'Informations oeuvre'!C4","v":"Format / Saison : [à compléter]"},null,null,null,null,null,{"$f":"\"Arrété au \"&TEXT('Informations oeuvre'!C10,\"jj/mm/aaaa\")","v":"Arrété au 31.12.2025"}]
[null,{"$f":"\"Réalisation : \"&'Informations oeuvre'!C3","v":"Réalisation : [à compléter]"}]
[null,{"$f":"\"N° ISAN : \"&'Informations oeuvre'!C5","v":"N° ISAN : [à compléter]"}]
[]
[null,{"$f":"+N3&\" \"&VLOOKUP(N3,'Base de données ayants droit'!B:Y,2, FALSE)","v":"Exemple 2 "}]
[null,{"$f":"\"Contrat \"&VLOOKUP(N3,'Base de données ayants droit'!B:Y,3,FALSE)","v":"Contrat Auteur.e scénariste"}]
[null,{"$f":"\"Signé en date du \"&TEXT(VLOOKUP(N3,'Base de données ayants droit'!B:W,11,FALSE),\"jj/mm/aa\")&IF(VLOOKUP(N3,'Base de données ayants droit'!B:W,12,FALSE)=TRUE,\" et son/ses avenant(s)\",\"\")","v":"Signé en date du 18/04/51 et son/ses avenant(s)"}]
[null,"[Cas échéant,  intitulé de l'épisode de l'auteur.e]",null,null,null,null,null,null,null,null,null,null,"Supprimer la ligne si non nécessaire"]
[]
[null,"RÉMUNÉRATION PROPORTIONNELLE",null,null,null,null,null,"BASE","%","QP"]
[]
[null,"1/ EXPLOITATION CINEMA France"]
[null,null,"Prix payé par le public net de taxes ",null,null,null,null,{"$f":"J109","v":0},0,{"$f":"+H20*I20","v":0}]
[]
[null,"2/ EXPLOITATION VIDEO France"]
[null,null,"Chiffre d'affaires net éditeur",null,null,null,null,{"$f":"J115","v":0},0,{"$f":"H23*I23","v":0},null,null,"Selon certaines conditions, l'exploitation vidéo peut-être prise en charge par les organismes de gestion collective"]
[]
[null,"3/ EXPLOITATION VOD France"]
[null,null,"Rémunération via organisme de gestion collective",null,null,null,null,"n/a",0]
[]
[null,"4/ EXPLOITATION TV France",null,null,null,null,{"$f":"+IF(VLOOKUP($N$3,'Base de données ayants droit'!B:Y,19,FALSE)=TRUE,\"Gestion collective\",\"\")","v":""}]
[null,null,"Rémunération via organisme de gestion collective",null,null,null,null,"n/a",0]
[]
[null,"5/ EXPLOITATION SVOD France"]
[null,null,"Rémunération via organisme de gestion collective",null,null,null,null,"n/a",0]
[]
[null,"6/ AUTRES EXPLOITATIONS France"]
[null,null,"Recettes nettes part producteur",null,null,null,null,{"$f":"IF(J136>0,J136,0)","v":0},0,{"$f":"H35*I35","v":0},null,null,"En cas de recettes sur l'exploitation littéraire, la base de recette est le prix payé par le public HT"]
[]
[null,"7/ EXPLOITATION VIDEO/VOD/TV/SVOD INTERNATIONALE"]
[null,null,"Minimum garanti",null,null,null,null,{"$f":"J86","v":0},0,{"$f":"H38*I38","v":0},null,null,"Le cas échéant, lier la base au minimum garanti du support approprié"]
[null,null,"Préventes",null,null,null,null,{"$f":"J98","v":0},0,{"$f":"H39*I39","v":0},null,null,"Le cas échéant, lier la base aux préventes du support approprié"]
[null,null,"RNPP-A forfaitaire en cas de coproduction internationale",null,null,null,null,{"$f":"J104","v":0},0]
[null,null,"RNPP-A",null,null,null,null,{"$f":"IF(J139>0,J139+G136,G136)","v":0},0,{"$f":"H41*I41","v":0}]
[]
[null,"8/ EXPLOITATION MERCHANDISING INTERNATIONALE"]
[null,null,"Minimum garanti",null,null,null,null,{"$f":"J87","v":0},0,{"$f":"H44*I44","v":0},null,null,"Le cas échéant, lier la base au minimum garanti du support approprié"]
[null,null,"Préventes",null,null,null,null,{"$f":"J98","v":0},0,{"$f":"H45*I45","v":0},null,null,"Le cas échéant, lier la base aux préventes du support approprié"]
[null,null,"RNPP-A",null,null,null,null,{"$f":"IF(J143>0,J143+G141,G141)","v":0},0,{"$f":"H46*I46","v":0}]
[]
[null,"TOTAL",null,null,null,null,null,null,null,{"$f":"SUM(J18:J47)","v":0}]
[]
[]
[null,"Quote-part de l'auteur.e sur l'œuvre",null,null,null,null,null,{"$f":"J48","v":0},0,{"$f":"I51*J48","v":0},null,null,"Si plusieurs auteur.e.s. sinon supprimer. Ex : un auteur scénarise 1 épisode d'une saison de 10 épisode. Sa QP en tant qu'auteur scénariste est de 1/10% des recettes de la saison."]
[]
[null,"AVANCE/MINIMUM GARANTI",null,null,null,{"$f":"Amortissement!F73","v":"ŒUVRE NON AMORTIE"},null,null,null,0,null,null,"En cas d'amortissement de l'oeuvre, le MG n'est plus opposable"]
[]
[null,"TOTAL",null,null,null,null,null,null,null,{"$f":"SUM(J49:J54)","v":0}]
[]
[null,"TOTAL À VERSER",null,null,null,null,null,null,null,{"$f":"IF(J55>0,J55,0)","v":0},null,null,"Ne pas modifier le nom de la cellule \"J48\" = \"TAV\""]
[]
[null,"À DÉDUIRE SITUATION PRÉCEDENTE",null,null,null,null,null,null,null,0,null,null,"Ne pas modifier le nom de la cellule \"J50\" = \"ADSP\""]
[]
[null,"À RECEVOIR SUR LA PÉRIODE",null,null,null,null,null,null,null,{"$f":"J57+J59","v":0}]
[]
[null,null,null,"AUTEUR.E",null,{"$f":"1-F64","v":0.9},{"$f":"+J61*F63","v":0},null,null,null,null,null,"Dans le cas où l'ayant droit n'a pas d'agence artistique, supprimer la ligne"]
[null,null,null,"AGENCE ARTISTIQUE H.T.",null,0.1,{"$f":"+J61*F64","v":0},null,null,null,null,null,"Dans le cas où l'ayant droit n'a pas d'agence artistique, supprimer la ligne"]
[]
[null,null,null,null,null,null,null,null,null,null,null,null,"En cas de rémunération post amortissement, insérer cette section complétée avant \"Total à verser\" et modifier le calcul du total à verser"]
[null,null,null,null,null,null,null,null,null,null,null,null,"RÉMUNÉRATION POST-AMORTISSEMENT",null,null,null,null,null,"BASE","%","QP"]
[]
[null,null,null,null,null,null,null,null,null,null,null,null,"Recette nette part producteur après amortissement",null,null,null,null,null,{"$f":"+J302","v":0},0,{"$f":"T69*S69","v":0}]
[]
[null,null,null,null,null,null,null,null,null,null,null,null,"TOTAL",null,null,null,null,null,null,null,{"$f":"U69","v":0}]
[]
[]
[]
[]
[]
[]
[]
[]
[]
[null,{"$f":"'Informations oeuvre'!C2","v":"ŒUVRE"},null,null,null,null,null,null,null,{"$f":"TEXT('Informations oeuvre'!C10,\"jj/mm/aaaa\")","v":"31.12.2025"}]
[]
[null,{"$f":"'Décompte général'!B11","v":"RECETTES ISSUES DU PLAN DE FINANCEMENT"}]
[null,{"$f":"'Décompte général'!B12","v":"MINIMA GARANTIS SUR EXPLOITATION HORS GESTION COLLECTIVE"}]
[null,null,{"$f":"'Décompte général'!C13","v":"Mandataire"},{"$f":"'Décompte général'!D13","v":"Territoire"},{"$f":"'Décompte général'!E13","v":"Exploitation"},{"$f":"'Décompte général'!F13","v":"Montant"},{"$f":"'Décompte général'!G13","v":"Gestion individuelle"}]
[null,null,{"$f":"'Décompte général'!C14","v":"[à compléter]"},{"$f":"'Décompte général'!D14","v":"[à compléter]"},{"$f":"'Décompte général'!E14","v":"[à compléter]"},{"$f":"'Décompte général'!F14","v":0},null,null,null,{"$f":"'Décompte général'!J14","v":0}]
[null,null,{"$f":"'Décompte général'!C15","v":"[à compléter]"},{"$f":"'Décompte général'!D15","v":"[à compléter]"},{"$f":"'Décompte général'!E15","v":"[à compléter]"},{"$f":"'Décompte général'!F15","v":0},null,null,null,{"$f":"'Décompte général'!J15","v":0}]
[null,null,{"$f":"'Décompte général'!C16","v":"RNPP-A sur minimas garantis"},null,null,null,null,null,null,{"$f":"'Décompte général'!J16","v":0}]
[]
[null,{"$f":"'Décompte général'!B18","v":"PREVENTES INTERNATIONAL"}]
[null,null,{"$f":"'Décompte général'!C19","v":"Acheteur"},{"$f":"'Décompte général'!D19","v":"Territoire"},{"$f":"'Décompte général'!E19","v":"Exploitation"},{"$f":"'Décompte général'!F19","v":"Montant"},{"$f":"'Décompte général'!G19","v":"Gestion individuelle"}]
[null,null,{"$f":"'Décompte général'!C20","v":"[à compléter]"},{"$f":"'Décompte général'!D20","v":"[à compléter]"},{"$f":"'Décompte général'!E20","v":"[à compléter]"},null,null,null,null,{"$f":"'Décompte général'!J20","v":0}]
[null,null,{"$f":"'Décompte général'!C21","v":"[à compléter]"},{"$f":"'Décompte général'!D21","v":"[à compléter]"},{"$f":"'Décompte général'!E21","v":"[à compléter]"},null,null,null,null,{"$f":"'Décompte général'!J21","v":0}]
[null,null,{"$f":"'Décompte général'!C22","v":"Total encaissement brut"},null,null,null,null,null,null,{"$f":"'Décompte général'!J22","v":0}]
[null,null,{"$f":"'Décompte général'!C23","v":"Commission de distribution"},null,null,null,{"$f":"'Décompte général'!G23","v":0.3},null,null,{"$f":"'Décompte général'!J23","v":0}]
[null,null,{"$f":"'Décompte général'!C24","v":"Frais d'exploitation usuels forfaitisés (5%)"},null,null,null,null,null,null,{"$f":"'Décompte général'!J24","v":0}]
[null,null,{"$f":"'Décompte général'!C25","v":"Frais d'exploitation non usuels (opposés au réel)"},null,null,null,null,null,null,{"$f":"'Décompte général'!J25","v":0}]
[null,null,{"$f":"'Décompte général'!C26","v":"RNPP-A sur préventes internationales"},null,null,null,null,null,null,{"$f":"'Décompte général'!J26","v":0}]
[]
[null,{"$f":"'Décompte général'!B28","v":"COPRODUCTIONS INTERNATIONALES"}]
[null,null,{"$f":"'Décompte général'!C29","v":"Société"},{"$f":"'Décompte général'!D29","v":"Territoire"},null,{"$f":"'Décompte général'!F29","v":"Apport"},{"$f":"'Décompte général'!G29","v":"Gestion individuelle"}]
[null,null,{"$f":"'Décompte général'!C30","v":"[à compléter]"},{"$f":"'Décompte général'!D30","v":"[à compléter]"},{"$f":"'Décompte général'!E30","v":"[à compléter]"},null,null,null,null,{"$f":"'Décompte général'!J30","v":0}]
[null,null,{"$f":"'Décompte général'!C31","v":"[à compléter]"},{"$f":"'Décompte général'!D31","v":"[à compléter]"},{"$f":"'Décompte général'!E31","v":"[à compléter]"},null,null,null,null,{"$f":"'Décompte général'!J31","v":0}]
[null,null,{"$f":"'Décompte général'!C32","v":"Apports des coproducteurs considérés en RNPP-A forfaitaire"},null,null,null,null,null,null,{"$f":"'Décompte général'!J32","v":0}]
[]
[]
[null,{"$f":"'Décompte général'!B35","v":"RECETTES ISSUES DE L'EXPLOITATION"},null,null,null,null,null,{"$f":"+'Décompte général'!H35","v":"ANTÉRIEUR"},{"$f":"+'Décompte général'!I35","v":"PÉRIODE"},{"$f":"+'Décompte général'!J35","v":"CUMUL"},null,null,"Ne pas modifier le nom des cellules \"H73\" = \"ANTÉRIEUR\" et \"J73\" = \"CUMUL\""]
[null,{"$f":"'Décompte général'!B36","v":"1/ EXPLOITATION CINÉMA FRANCE"},null,null,null,null,{"$f":"'Décompte général'!G36","v":"[DISTRIBUTEUR]"}]
[null,null,{"$f":"'Décompte général'!C37","v":"Prix hors taxes (net de TVA et TSA) payé par le public "},null,null,null,null,{"$f":"'Décompte général'!H37","v":0},{"$f":"J109-H109","v":0},{"$f":"'Décompte général'!J37","v":0}]
[]
[null,null,{"$f":"'Décompte général'!C39","v":"Prix hors taxes (net de TVA et TSA) payé par le public jusqu'à amortissement"},null,null,null,null,{"$f":"'Décompte général'!H39","v":0},{"$f":"'Décompte général'!I39","v":0},{"$f":"'Décompte général'!J39","v":0},null,null,"Section nécessaire uniquement en cas d'amortissement de l'œuvre"]
[null,null,{"$f":"'Décompte général'!C40","v":"Prix hors taxes (net de TVA et TSA) payé par le public après amortissement"},null,null,null,null,{"$f":"'Décompte général'!H40","v":0},{"$f":"'Décompte général'!I40","v":0},{"$f":"'Décompte général'!J40","v":0}]
[]
[null,{"$f":"+'Décompte général'!B49","v":"2/ EXPLOITATION VIDÉO FRANCE"},null,null,null,null,{"$f":"'Décompte général'!G49","v":"[DISTRIBUTEUR]"}]
[null,null,{"$f":"+'Décompte général'!C50","v":"Chiffre d'affaires net éditeur"},null,null,null,null,{"$f":"'Décompte général'!H50","v":0},{"$f":"'Décompte général'!I50","v":0},{"$f":"'Décompte général'!J50","v":0}]
[]
[null,null,{"$f":"+'Décompte général'!C52","v":"Chiffre d'affaires net éditeur jusqu'à amortissement"},null,null,null,null,{"$f":"'Décompte général'!H52","v":0},{"$f":"'Décompte général'!I52","v":0},{"$f":"'Décompte général'!J52","v":0},null,null,"Section nécessaire uniquement en cas d'amortissement de l'œuvre"]
[null,null,{"$f":"+'Décompte général'!C53","v":"Chiffre d'affaires net éditeur après amortissement"},null,null,null,null,{"$f":"'Décompte général'!H53","v":0},{"$f":"'Décompte général'!I53","v":0},{"$f":"'Décompte général'!J53","v":0}]
[]
[null,{"$f":"'Décompte général'!B62","v":"3/ EXPLOITATION VOD FRANCE"},null,null,null,null,{"$f":"'Décompte général'!G62","v":"[DISTRIBUTEUR]"}]
[null,null,{"$f":"'Décompte général'!C63","v":"Chiffre d'affaires net éditeur"},null,null,null,null,{"$f":"'Décompte général'!H63","v":0},{"$f":"'Décompte général'!I63","v":0},{"$f":"'Décompte général'!J63","v":0}]
[]
[null,{"$f":"+'Décompte général'!B72","v":"4/ EXPLOITATION TV FRANCE"},null,null,null,null,{"$f":"'Décompte général'!G72","v":"[DISTRIBUTEUR]"}]
[null,null,{"$f":"'Décompte général'!C73","v":"[Chaîne]"},null,null,null,{"$f":"'Décompte général'!G73","v":0},{"$f":"'Décompte général'!H73","v":0},{"$f":"'Décompte général'!I73","v":0},{"$f":"'Décompte général'!J73","v":0}]
[null,null,{"$f":"'Décompte général'!C74","v":"Total Recette brute "},null,null,null,null,{"$f":"'Décompte général'!H74","v":0},{"$f":"'Décompte général'!I74","v":0},{"$f":"'Décompte général'!J74","v":0}]
[]
[null,{"$f":"+'Décompte général'!B80","v":"5/ EXPLOITATION SVOD FRANCE"},null,null,null,null,{"$f":"'Décompte général'!G80","v":"[DISTRIBUTEUR]"}]
[null,null,{"$f":"'Décompte général'!C81","v":"[Plateforme]"},null,null,null,{"$f":"'Décompte général'!G81","v":0},{"$f":"'Décompte général'!H81","v":0},{"$f":"'Décompte général'!I81","v":0},{"$f":"'Décompte général'!J81","v":0}]
[null,null,{"$f":"'Décompte général'!C82","v":"Total Recette brute "},null,null,null,null,{"$f":"'Décompte général'!H82","v":0},{"$f":"'Décompte général'!I82","v":0},{"$f":"'Décompte général'!J82","v":0}]
[]
[null,{"$f":"'Décompte général'!B88","v":"6/ AUTRES EXPLOITATIONS FRANCE"},null,null,null,null,{"$f":"'Décompte général'!G88","v":"[DISTRIBUTEUR]"}]
[null,null,{"$f":"'Décompte général'!C89","v":"Recette brute "},null,null,null,null,{"$f":"'Décompte général'!H89","v":0},{"$f":"+J132-H132","v":0},{"$f":"'Décompte général'!J89","v":0}]
[null,null,{"$f":"'Décompte général'!C90","v":"Commission de distribution "},null,null,null,{"$f":"'Décompte général'!G90","v":0.3},{"$f":"'Décompte général'!H90","v":0},{"$f":"+J133-H133","v":0},{"$f":"J132*-G133","v":0}]
[null,null,"Frais d'exploitation usuels (forfaitisés 5%)",null,null,null,null,{"$f":"'Décompte général'!H91","v":0},0,{"$f":"J132*-5%","v":0}]
[null,null,{"$f":"'Décompte général'!C92","v":"Frais d'exploitation non usuels (opposés au réel)"},null,null,null,null,{"$f":"'Décompte général'!H92","v":0},0,{"$f":"'Décompte général'!J92","v":0}]
[null,null,{"$f":"'Décompte général'!C93","v":"Recette nette part producteur autres exploitations France"},null,null,null,null,{"$f":"'Décompte général'!H93","v":0},0,{"$f":"'Décompte général'!J93","v":0}]
[]
[null,null,{"$f":"'Décompte général'!C95","v":"Recette nette part producteur autres exploitations France jusqu'à amortissement"},null,null,null,null,{"$f":"'Décompte général'!H95","v":0},0,{"$f":"'Décompte général'!J95","v":0},null,null,"Section nécessaire uniquement en cas d'amortissement de l'œuvre"]
[null,null,{"$f":"'Décompte général'!C96","v":"Recette nette part producteur autres exploitations France après amortissement"},null,null,null,null,{"$f":"'Décompte général'!H96","v":0},0,{"$f":"'Décompte général'!J96","v":0}]
[]
[null,{"$f":"'Décompte général'!B98","v":"7/ EXPLOITATION INTERNATIONALE HORS MERCHANDISING"}]
[]
[null,{"$f":"'Décompte général'!B100","v":"#"},{"$f":"'Décompte général'!C100","v":"Acheteur"},{"$f":"'Décompte général'!D100","v":"Territoire"},null,{"$f":"'Décompte général'!F100","v":"Exploitation"},{"$f":"'Décompte général'!G100","v":"Montant vente"}]
[null,{"$f":"'Décompte général'!B102","v":1},{"$f":"'Décompte général'!C102","v":"[à compléter]"},{"$f":"'Décompte général'!D102","v":"[à compléter]"},null,{"$f":"'Décompte général'!F102","v":"[à compléter]"},{"$f":"'Décompte général'!G102","v":"[à compléter]"},{"$f":"'Décompte général'!H103","v":0},{"$f":"'Décompte général'!I103","v":0},{"$f":"'Décompte général'!J103","v":0}]
[null,{"$f":"'Décompte général'!B103","v":2},{"$f":"'Décompte général'!C103","v":"[à compléter]"},{"$f":"'Décompte général'!D103","v":"[à compléter]"},null,{"$f":"'Décompte général'!F103","v":"[à compléter]"},{"$f":"'Décompte général'!G103","v":"[à compléter]"},{"$f":"'Décompte général'!H104","v":0},{"$f":"'Décompte général'!I104","v":0},{"$f":"'Décompte général'!J104","v":0}]
[null,null,"Total encaissement brut (en gestion individuelle et collective)",null,null,null,null,{"$f":"'Décompte général'!H105","v":0},{"$f":"'Décompte général'!I105","v":0},{"$f":"'Décompte général'!J105","v":0}]
[]
[null,"#","Acheteur","Gestion indviduelle",null,"Montant en gestion individuelle"]
[null,1,{"$f":"C144","v":"[à compléter]"},{"$f":"'Décompte général'!M102","v":0},null,{"$f":"G144*D149","v":{"$error":"#VALUE!"}},null,0,{"$f":"J149-H149","v":0},{"$f":"J144*D149","v":0}]
[null,2,{"$f":"C145","v":"[à compléter]"},{"$f":"'Décompte général'!M103","v":0},null,{"$f":"G145*D150","v":{"$error":"#VALUE!"}},null,0,{"$f":"J150-H150","v":0},{"$f":"J145*D150","v":0}]
[null,null,"Total encaissement brut en gestion individuelle",null,null,null,null,0,{"$f":"+J151-H151","v":0},{"$f":"SUM(J149:J150)","v":0}]
[]
[null,null,"Commission de distribution",null,null,null,{"$f":"+'Décompte général'!O101","v":0.3},0,{"$f":"J153-H153","v":0},{"$f":"+J151*-G153","v":0}]
[null,null,"Frais usuels forfaitisés (5%)",null,null,null,null,0,{"$f":"J154-H154","v":0},{"$f":"J151*-5%","v":0}]
[null,null,"Frais non usuels (opposés au réél)",null,null,null,null,0,{"$f":"J155-H155","v":0},{"$f":"'Décompte général'!Q104","v":0}]
[null,null,"Minimum garanti opposable",null,null,null,{"$f":"'Décompte général'!O106","v":0},0,{"$f":"J156-H156","v":0},{"$f":"'Décompte général'!R106","v":0},null,null,"Le montant du MG opposable est calculé dans la section \"recettes issues du plan de fianncement\""]
[null,null,{"$f":"'Décompte général'!M107","v":"RNPP-A International hors merchandising (après MG)"},null,null,null,null,0,{"$f":"J157-H157","v":0},{"$f":"SUM(J151:J156)","v":0}]
[]
[null,null,{"$f":"+'Décompte général'!M109","v":"RNPP-A International hors merchandising (après MG) jusqu'à amortissement"},null,null,null,null,0,{"$f":"J159-H159","v":0},{"$f":"+'Décompte général'!R109","v":0},null,null,"Section nécessaire uniquement en cas d'amortissement de l'œuvre"]
[null,null,{"$f":"+'Décompte général'!M110","v":"RNPP-A International hors merchandising (après MG) après amortissement"},null,null,null,null,0,{"$f":"J160-H160","v":0},{"$f":"+'Décompte général'!R110","v":0}]
[]
[null,{"$f":"'Décompte général'!B112","v":"8/ EXPLOITATION MERCHANDISING INTERNATIONALE"}]
[]
[null,{"$f":"'Décompte général'!B114","v":"#"},{"$f":"'Décompte général'!C114","v":"Acheteur"},{"$f":"'Décompte général'!D114","v":"Territoire"},null,null,{"$f":"'Décompte général'!G114","v":"Montant vente"}]
[null,{"$f":"'Décompte général'!B116","v":1},{"$f":"'Décompte général'!C116","v":"[à compléter]"},{"$f":"'Décompte général'!D116","v":"[à compléter]"},null,null,{"$f":"'Décompte général'!G116","v":"[à compléter]"},{"$f":"'Décompte général'!H116","v":0},{"$f":"'Décompte général'!I116","v":0},{"$f":"'Décompte général'!J116","v":0}]
[null,{"$f":"'Décompte général'!B117","v":2},{"$f":"'Décompte général'!C117","v":"[à compléter]"},{"$f":"'Décompte général'!D117","v":"[à compléter]"},null,null,{"$f":"'Décompte général'!G117","v":"[à compléter]"},{"$f":"'Décompte général'!H117","v":0},{"$f":"'Décompte général'!I117","v":0},{"$f":"'Décompte général'!J117","v":0}]
[null,null,"Total encaissement brut (en gestion individuelle et collective)",null,null,null,null,{"$f":"'Décompte général'!H118","v":0},{"$f":"'Décompte général'!I118","v":0},{"$f":"'Décompte général'!J118","v":0}]
[]
[null,"#","Acheteur","Gestion indviduelle",null,"Montant en gestion individuelle"]
[null,null,{"$f":"C165","v":"[à compléter]"},{"$f":"'Décompte général'!M116","v":0},null,{"$f":"G165*D170","v":{"$error":"#VALUE!"}},null,0,{"$f":"J170-H170","v":0},{"$f":"J165*E170","v":0}]
[null,null,{"$f":"C166","v":"[à compléter]"},{"$f":"'Décompte général'!M117","v":0},null,{"$f":"G166*D171","v":{"$error":"#VALUE!"}},null,0,{"$f":"J171-H171","v":0},{"$f":"J166*D171","v":0}]
[null,null,"Total encaissement brut en gestion individuelle",null,null,null,null,0,{"$f":"SUM(I170:I171)","v":0},{"$f":"SUM(J170:J171)","v":0}]
[]
[null,null,"Commission de distribution",null,null,null,{"$f":"'Décompte général'!O115","v":0.5},0,{"$f":"J174-H174","v":0},{"$f":"+J172*-G174","v":0}]
[null,null,"Frais usuels forfaitisés (5%)",null,null,null,null,0,{"$f":"J175-H175","v":0},{"$f":"J172*-5%","v":0}]
[null,null,"Frais non usuels (opposés au réél)",null,null,null,null,0,{"$f":"J176-H176","v":0},{"$f":"'Décompte général'!Q118","v":0}]
[null,null,"Minimum garanti opposable",null,null,null,{"$f":"'Décompte général'!O120","v":0},0,{"$f":"J177-H177","v":0},{"$f":"-G177","v":0},null,null,"Le montant du MG opposable est calculé dans la section \"recettes issues du plan de fianncement\""]
[null,null,{"$f":"'Décompte général'!M121","v":"RNPP-A Merchandising International (après MG)"},null,null,null,null,0,{"$f":"J178-H178","v":0},{"$f":"SUM(J172:J177)","v":0}]
[]
[null,null,{"$f":"'Décompte général'!M123","v":"RNPP-A Merchandising International (après MG) jusqu'à amortissement"},null,null,null,null,0,{"$f":"J180-H180","v":0},{"$f":"'Décompte général'!R123","v":0},null,null,"Section nécessaire uniquement en cas d'amortissement de l'œuvre"]
[null,null,{"$f":"'Décompte général'!M124","v":"RNPP-A Merchandising International (après MG) après amortissement"},null,null,null,null,0,{"$f":"J181-H181","v":0},{"$f":"'Décompte général'!R124","v":0}]
[]
[]
[]
[]
[]
[]
[]
[]
[]
[]
[]
[]
[]
[]
[]
[]
[]
[]
[]
[]
[]
[]
[]
[]
[]
[]
[]
[]
[]
[]
[]
[]
[]
[]
[]
[]
[]
[]
[]
[]
[]
[]
[]
[]
[]
[]
[]
[]
[]
[]
[]
[]
[]
[]
[]
[]
[null,{"$f":"\"CALCUL AMORTISSEMENT - \"&'Informations oeuvre'!C2&\" - \"&TEXT('Informations oeuvre'!C10,\"jj/mm/aaaa\")","v":"CALCUL AMORTISSEMENT - ŒUVRE - 31.12.2025"},null,null,null,null,null,null,null,null,null,null,"Selon le détail des recettes ci-dessous"]
[null,{"$f":"Amortissement!B8","v":"Selon l'accord professionnel sur la transparence des comptes d'exploitation \ndes oeuvres audiovisuelles du 6 juillet 2017"}]
[]
[]
[null,null,{"$f":"Amortissement!C12","v":"Recettes nettes par producteur Cinéma France après MG"},null,null,null,null,{"$f":"+Amortissement!H12","v":0},{"$f":"+Amortissement!I12","v":0},{"$f":"+Amortissement!J12","v":0}]
[null,null,"Reversements aux préfinanceurs visés aux points d, e et/ou i \nde l'article 5.1 de l'accord du 19 février 2016*",null,null,null,null,{"$f":"+Amortissement!H13","v":0},{"$f":"+Amortissement!I13","v":0},{"$f":"+Amortissement!J13","v":0}]
[null,null,{"$f":"Amortissement!C14","v":"Reversement aux auteurs au titre de la rémunération proportionnelle"},null,null,null,null,{"$f":"+Amortissement!H14","v":0},{"$f":"+Amortissement!I14","v":0},{"$f":"+Amortissement!J14","v":0}]
[null,null,{"$f":"Amortissement!C15","v":"Rémunération complémentaires aux artistes interprètes"},null,null,null,null,{"$f":"+Amortissement!H15","v":0},{"$f":"+Amortissement!I15","v":0},{"$f":"+Amortissement!J15","v":0}]
[null,{"$f":"Amortissement!B16","v":"Recettes Cinéma France en amortissement du coût du film "},null,null,null,null,null,{"$f":"+Amortissement!H16","v":0},{"$f":"+Amortissement!I16","v":0},{"$f":"+Amortissement!J16","v":0}]
[]
[null,null,{"$f":"Amortissement!C18","v":"Recettes nettes par producteur Vidéo France après MG"},null,null,null,null,{"$f":"+Amortissement!H18","v":0},{"$f":"+Amortissement!I18","v":0},{"$f":"+Amortissement!J18","v":0}]
[null,null,"Reversements aux préfinanceurs visés aux points d, e et/ou i \nde l'article 5.1 de l'accord du 19 février 2016*",null,null,null,null,{"$f":"+Amortissement!H19","v":0},{"$f":"+Amortissement!I19","v":0},{"$f":"+Amortissement!J19","v":0}]
[null,null,{"$f":"Amortissement!C20","v":"Reversement aux auteurs au titre de la rémunération proportionnelle"},null,null,null,null,{"$f":"+Amortissement!H20","v":0},{"$f":"+Amortissement!I20","v":0},{"$f":"+Amortissement!J20","v":0}]
[null,null,{"$f":"Amortissement!C21","v":"Rémunération complémentaires aux artistes interprètes"},null,null,null,null,{"$f":"+Amortissement!H21","v":0},{"$f":"+Amortissement!I21","v":0},{"$f":"+Amortissement!J21","v":0}]
[null,{"$f":"Amortissement!B22","v":"Recettes Vidéo France en amortissement du coût du film "},null,null,null,null,null,{"$f":"+Amortissement!H22","v":0},{"$f":"+Amortissement!I22","v":0},{"$f":"+Amortissement!J22","v":0}]
[]
[null,null,{"$f":"Amortissement!C24","v":"Recettes nettes par producteur VOD France après MG"},null,null,null,null,{"$f":"+Amortissement!H24","v":0},{"$f":"+Amortissement!I24","v":0},{"$f":"+Amortissement!J24","v":0}]
[null,null,"Reversements aux préfinanceurs visés aux points d, e et/ou i \nde l'article 5.1 de l'accord du 19 février 2016*",null,null,null,null,{"$f":"+Amortissement!H25","v":0},{"$f":"+Amortissement!I25","v":0},{"$f":"+Amortissement!J25","v":0}]
[null,null,{"$f":"Amortissement!C26","v":"Reversement aux auteurs au titre de la rémunération proportionnelle"},null,null,null,null,{"$f":"+Amortissement!H26","v":0},{"$f":"+Amortissement!I26","v":0},{"$f":"+Amortissement!J26","v":0}]
[null,null,{"$f":"Amortissement!C27","v":"Rémunération complémentaires aux artistes interprètes"},null,null,null,null,{"$f":"+Amortissement!H27","v":0},{"$f":"+Amortissement!I27","v":0},{"$f":"+Amortissement!J27","v":0}]
[null,{"$f":"Amortissement!B28","v":"Recettes VOD France en amortissement du coût du film "},null,null,null,null,null,{"$f":"+Amortissement!H28","v":0},{"$f":"+Amortissement!I28","v":0},{"$f":"+Amortissement!J28","v":0}]
[null,null,null,null,null,null,null,null,null,{"$f":"+Amortissement!J29","v":0}]
[null,null,{"$f":"Amortissement!C30","v":"Recettes nettes par producteur TV France après MG"},null,null,null,null,{"$f":"+Amortissement!H30","v":0},{"$f":"+Amortissement!I30","v":0},{"$f":"+Amortissement!J30","v":0}]
[null,null,"Reversements aux préfinanceurs visés aux points d, e et/ou i \nde l'article 5.1 de l'accord du 19 février 2016*",null,null,null,null,{"$f":"+Amortissement!H31","v":0},{"$f":"+Amortissement!I31","v":0},{"$f":"+Amortissement!J31","v":0}]
[null,null,{"$f":"Amortissement!C32","v":"Reversement aux auteurs au titre de la rémunération proportionnelle"},null,null,null,null,{"$f":"+Amortissement!H32","v":0},{"$f":"+Amortissement!I32","v":0},{"$f":"+Amortissement!J32","v":0}]
[null,null,{"$f":"Amortissement!C33","v":"Rémunération complémentaires aux artistes interprètes"},null,null,null,null,{"$f":"+Amortissement!H33","v":0},{"$f":"+Amortissement!I33","v":0},{"$f":"+Amortissement!J33","v":0}]
[null,{"$f":"Amortissement!B34","v":"Recettes TV France en amortissement du coût du film "},null,null,null,null,null,{"$f":"+Amortissement!H34","v":0},{"$f":"+Amortissement!I34","v":0},{"$f":"+Amortissement!J34","v":0}]
[]
[null,null,{"$f":"Amortissement!C36","v":"Recettes nettes par producteur SVOD France après MG"},null,null,null,null,{"$f":"+Amortissement!H36","v":0},{"$f":"+Amortissement!I36","v":0},{"$f":"+Amortissement!J36","v":0}]
[null,null,"Reversements aux préfinanceurs visés aux points d, e et/ou i \nde l'article 5.1 de l'accord du 19 février 2016*",null,null,null,null,{"$f":"+Amortissement!H37","v":0},{"$f":"+Amortissement!I37","v":0},{"$f":"+Amortissement!J37","v":0}]
[null,null,{"$f":"Amortissement!C38","v":"Reversement aux auteurs au titre de la rémunération proportionnelle"},null,null,null,null,{"$f":"+Amortissement!H38","v":0},{"$f":"+Amortissement!I38","v":0},{"$f":"+Amortissement!J38","v":0}]
[null,null,{"$f":"Amortissement!C39","v":"Rémunération complémentaires aux artistes interprètes"},null,null,null,null,{"$f":"+Amortissement!H39","v":0},{"$f":"+Amortissement!I39","v":0},{"$f":"+Amortissement!J39","v":0}]
[null,{"$f":"Amortissement!B40","v":"Recettes SVOD France en amortissement du coût du film "},null,null,null,null,null,{"$f":"+Amortissement!H40","v":0},{"$f":"+Amortissement!I40","v":0},{"$f":"+Amortissement!J40","v":0}]
[]
[null,null,{"$f":"Amortissement!C42","v":"Recettes nettes par producteur Autres exploitations France après MG"},null,null,null,null,{"$f":"+Amortissement!H42","v":0},{"$f":"+Amortissement!I42","v":0},{"$f":"+Amortissement!J42","v":0}]
[null,null,"Reversements aux préfinanceurs visés aux points d, e et/ou i \nde l'article 5.1 de l'accord du 19 février 2016*",null,null,null,null,{"$f":"+Amortissement!H43","v":0},{"$f":"+Amortissement!I43","v":0},{"$f":"+Amortissement!J43","v":0}]
[null,null,{"$f":"Amortissement!C44","v":"Reversement aux auteurs au titre de la rémunération proportionnelle"},null,null,null,null,{"$f":"+Amortissement!H44","v":0},{"$f":"+Amortissement!I44","v":0},{"$f":"+Amortissement!J44","v":0}]
[null,null,{"$f":"Amortissement!C45","v":"Rémunération complémentaires aux artistes interprètes"},null,null,null,null,{"$f":"+Amortissement!H45","v":0},{"$f":"+Amortissement!I45","v":0},{"$f":"+Amortissement!J45","v":0}]
[null,{"$f":"Amortissement!B46","v":"Recettes Autres exploitations France en amortissement du coût du film "},null,null,null,null,null,{"$f":"+Amortissement!H46","v":0},{"$f":"+Amortissement!I46","v":0},{"$f":"+Amortissement!J46","v":0}]
[]
[null,null,{"$f":"Amortissement!C48","v":"Recettes nettes par producteur International hors merchandising après MG"},null,null,null,null,{"$f":"+Amortissement!H48","v":0},{"$f":"+Amortissement!I48","v":0},{"$f":"+Amortissement!J48","v":0}]
[null,null,"Reversements aux préfinanceurs visés aux points d, e et/ou i \nde l'article 5.1 de l'accord du 19 février 2016*",null,null,null,null,{"$f":"+Amortissement!H49","v":0},{"$f":"+Amortissement!I49","v":0},{"$f":"+Amortissement!J49","v":0}]
[null,null,{"$f":"Amortissement!C50","v":"Reversement aux auteurs au titre de la rémunération proportionnelle"},null,null,null,null,{"$f":"+Amortissement!H50","v":0},{"$f":"+Amortissement!I50","v":0},{"$f":"+Amortissement!J50","v":0}]
[null,null,{"$f":"Amortissement!C51","v":"Rémunération complémentaires aux artistes interprètes"},null,null,null,null,{"$f":"+Amortissement!H51","v":0},{"$f":"+Amortissement!I51","v":0},{"$f":"+Amortissement!J51","v":0}]
[null,{"$f":"Amortissement!B52","v":"Recettes Video/VOD/TV/SVOD International en amortissement du coût du film "},null,null,null,null,null,{"$f":"+Amortissement!H52","v":0},{"$f":"+Amortissement!I52","v":0},{"$f":"+Amortissement!J52","v":0}]
[]
[null,null,{"$f":"Amortissement!C54","v":"Recettes nettes par producteur Merchandising International après MG"},null,null,null,null,{"$f":"+Amortissement!H54","v":0},{"$f":"+Amortissement!I54","v":0},{"$f":"+Amortissement!J54","v":0}]
[null,null,"Reversements aux préfinanceurs visés aux points d, e et/ou i \nde l'article 5.1 de l'accord du 19 février 2016*",null,null,null,null,{"$f":"+Amortissement!H55","v":0},{"$f":"+Amortissement!I55","v":0},{"$f":"+Amortissement!J55","v":0}]
[null,null,{"$f":"Amortissement!C56","v":"Reversement aux auteurs au titre de la rémunération proportionnelle"},null,null,null,null,{"$f":"+Amortissement!H56","v":0},{"$f":"+Amortissement!I56","v":0},{"$f":"+Amortissement!J56","v":0}]
[null,null,{"$f":"Amortissement!C57","v":"Rémunération complémentaires aux artistes interprètes"},null,null,null,null,{"$f":"+Amortissement!H57","v":0},{"$f":"+Amortissement!I57","v":0},{"$f":"+Amortissement!J57","v":0}]
[null,{"$f":"Amortissement!B58","v":"Recettes Merchandising International en amortissement du coût du film "},null,null,null,null,null,{"$f":"+Amortissement!H58","v":0},{"$f":"+Amortissement!I58","v":0},{"$f":"+Amortissement!J58","v":0}]
[]
[null,{"$f":"Amortissement!B61","v":"Sommes des recettes encaissées pour toutes les exploitations"},null,null,null,null,null,{"$f":"+Amortissement!H61","v":0},{"$f":"+Amortissement!I61","v":0},{"$f":"+Amortissement!J61","v":0}]
[]
[null,null,{"$f":"Amortissement!C63","v":"Frais juridiques, judiciaires, comptables (au titre de l'œuvre)"},null,null,null,null,{"$f":"+Amortissement!H63","v":0},{"$f":"+Amortissement!I63","v":0},{"$f":"+Amortissement!J63","v":0}]
[null,null,{"$f":"Amortissement!C64","v":"Renouvellement/renégociation droits auteur (au titre de l'œuvre)"},null,null,null,null,{"$f":"+Amortissement!H64","v":0},{"$f":"+Amortissement!I64","v":0},{"$f":"+Amortissement!J64","v":0}]
[null,null,{"$f":"Amortissement!C65","v":"Renouvellement/extension des élements additionnels (au titre de l'œuvre)"},null,null,null,null,{"$f":"+Amortissement!H65","v":0},{"$f":"+Amortissement!I65","v":0},{"$f":"+Amortissement!J65","v":0}]
[null,null,{"$f":"Amortissement!C66","v":"Frais de stockage, conservation, entretien du support, restauration"},null,null,null,null,{"$f":"+Amortissement!H66","v":0},{"$f":"+Amortissement!I66","v":0},{"$f":"+Amortissement!J66","v":0}]
[null,{"$f":"Amortissement!B67","v":"RNPP TOTALES"},null,null,null,null,null,{"$f":"+Amortissement!H67","v":0},{"$f":"+Amortissement!I67","v":0},{"$f":"+Amortissement!J67","v":0}]
[]
[null,{"$f":"Amortissement!B69","v":"APPORT PRODUCTEUR après prise en compte du crédit d'impôt (cf. détail ci-dessous)"},null,null,null,null,null,{"$f":"+Amortissement!H69","v":0},{"$f":"+Amortissement!I69","v":0},{"$f":"+Amortissement!J69","v":0}]
[]
[null,{"$f":"Amortissement!B71","v":"RNPP TOTALES NET DE L'APPORT PRODUCTEUR "},null,null,null,null,null,{"$f":"+Amortissement!H71","v":0},{"$f":"+Amortissement!I71","v":0},{"$f":"+Amortissement!J71","v":0}]
[]
[null,{"$f":"Amortissement!B73","v":"RNPP À REPARTIR"},null,null,null,null,null,{"$f":"+Amortissement!H73","v":0},{"$f":"+Amortissement!I73","v":0},{"$f":"+Amortissement!J73","v":0}]
[]
[null,{"$f":"Amortissement!B75","v":"* d = autres apports français (région, PROCIREP…) / e = SOFICA et autres apports financiers / i = autres financements étrangers"}]
[]
[]
[null,{"$f":"Amortissement!B78","v":"Apport producteur constaté au rendu des comptes définitifs"},null,null,null,null,{"$f":"+Amortissement!G78","v":0}]
[]
[null,null,{"$f":"Amortissement!C80","v":"Montant du crédit d'impôt de l'œuvre"},null,null,null,{"$f":"+Amortissement!G80","v":0}]
[null,null,{"$f":"Amortissement!C81","v":"Part de financement du/des diffuseurs français "}]
[null,null,{"$f":"Amortissement!C82","v":"dans l'œuvre (plafonnée à 75%)**"},null,null,null,{"$f":"+Amortissement!G82","v":0}]
[null,null,{"$f":"Amortissement!C83","v":"Montant du crédit d'impôt venant couvrir l'apport producteur"},null,null,null,{"$f":"+Amortissement!G83","v":0}]
[]
[null,{"$f":"Amortissement!B85","v":"Apport producteur constaté après prise en compte du crédit d'impôt"},null,null,null,null,{"$f":"+Amortissement!G85","v":0}]
[null,{"$f":"Amortissement!B86","v":"**selon les modalités de l'article 6.4 de l'accord du 19 février 2016"}]
[]
[null,"Détail des recettes pour déterminer le calcul d'amortissement de l'œuvre",null,null,null,null,null,null,null,null,null,null,"Détail des recettes servant uniquementau calcul de l'amortissement"]
[null,{"$f":"+'Décompte général'!B36","v":"1/ EXPLOITATION CINÉMA FRANCE"}]
[null,null,{"$f":"+'Décompte général'!C42","v":"Recette brute distributeur"},null,null,null,null,{"$f":"+'Décompte général'!H42","v":0},{"$f":"+'Décompte général'!I42","v":0},{"$f":"+'Décompte général'!J42","v":0}]
[null,null,{"$f":"+'Décompte général'!C43","v":"Commission de distribution"},null,null,null,null,{"$f":"+'Décompte général'!H43","v":0},{"$f":"+'Décompte général'!I43","v":0},{"$f":"+'Décompte général'!J43","v":0}]
[null,null,{"$f":"+'Décompte général'!C44","v":"Frais d'exploitation usuels (opposés au réel ou forfaitisés)"},null,null,null,null,{"$f":"+'Décompte général'!H44","v":0},{"$f":"+'Décompte général'!I44","v":0},{"$f":"+'Décompte général'!J44","v":0}]
[null,null,{"$f":"+'Décompte général'!C45","v":"Frais d'exploitation non usuels (opposés au réel)"},null,null,null,null,{"$f":"+'Décompte général'!H45","v":0},{"$f":"+'Décompte général'!I45","v":0},{"$f":"+'Décompte général'!J45","v":0}]
[null,null,{"$f":"+'Décompte général'!C46","v":"Minimum garanti"},null,null,null,null,{"$f":"+'Décompte général'!H46","v":0},{"$f":"+'Décompte général'!I46","v":0},{"$f":"+'Décompte général'!J46","v":0}]
[null,null,{"$f":"+'Décompte général'!C47","v":"Recette nette part producteur cinéma commercial France (après MG)"},null,null,null,null,{"$f":"+'Décompte général'!H47","v":0},{"$f":"+'Décompte général'!I47","v":0},{"$f":"+'Décompte général'!J47","v":0}]
[]
[null,{"$f":"+'Décompte général'!B49","v":"2/ EXPLOITATION VIDÉO FRANCE"}]
[null,null,{"$f":"+'Décompte général'!C55","v":"Chiffre d'affaires brut éditeur"},null,null,null,null,{"$f":"+'Décompte général'!H55","v":0},{"$f":"+'Décompte général'!I55","v":0},{"$f":"+'Décompte général'!J55","v":0}]
[null,null,{"$f":"+'Décompte général'!C56","v":"Commission de distribution"},null,null,null,null,{"$f":"+'Décompte général'!H56","v":0},{"$f":"+'Décompte général'!I56","v":0},{"$f":"+'Décompte général'!J56","v":0}]
[null,null,{"$f":"+'Décompte général'!C57","v":"Frais d'exploitation usuels (opposés au réel ou forfaitisés)"},null,null,null,null,{"$f":"+'Décompte général'!H57","v":0},{"$f":"+'Décompte général'!I57","v":0},{"$f":"+'Décompte général'!J57","v":0}]
[null,null,{"$f":"+'Décompte général'!C58","v":"Frais d'exploitation non usuels (opposés au réel)"},null,null,null,null,{"$f":"+'Décompte général'!H58","v":0},{"$f":"+'Décompte général'!I58","v":0},{"$f":"+'Décompte général'!J58","v":0}]
[null,null,{"$f":"+'Décompte général'!C59","v":"Minimum garanti"},null,null,null,null,{"$f":"+'Décompte général'!H59","v":0},{"$f":"+'Décompte général'!I59","v":0},{"$f":"+'Décompte général'!J59","v":0}]
[null,null,{"$f":"+'Décompte général'!C60","v":"Recette nette part producteur vidéo France (après MG)"},null,null,null,null,{"$f":"+'Décompte général'!H60","v":0},{"$f":"+'Décompte général'!I60","v":0},{"$f":"+'Décompte général'!J60","v":0}]
[]
[null,{"$f":"+'Décompte général'!B62","v":"3/ EXPLOITATION VOD FRANCE"}]
[null,null,{"$f":"+'Décompte général'!C65","v":"Chiffre d'affaires brut éditeur"},null,null,null,null,{"$f":"+'Décompte général'!H65","v":0},{"$f":"+'Décompte général'!I65","v":0},{"$f":"+'Décompte général'!J65","v":0}]
[null,null,{"$f":"+'Décompte général'!C66","v":"Commission de distribution"},null,null,null,null,{"$f":"+'Décompte général'!H66","v":0},{"$f":"+'Décompte général'!I66","v":0},{"$f":"+'Décompte général'!J66","v":0}]
[null,null,{"$f":"+'Décompte général'!C67","v":"Frais d'exploitation usuels (opposés au réel ou forfaitisés)"},null,null,null,null,{"$f":"+'Décompte général'!H67","v":0},{"$f":"+'Décompte général'!I67","v":0},{"$f":"+'Décompte général'!J67","v":0}]
[null,null,{"$f":"+'Décompte général'!C68","v":"Frais d'exploitation non usuels (opposés au réel)"},null,null,null,null,{"$f":"+'Décompte général'!H68","v":0},{"$f":"+'Décompte général'!I68","v":0},{"$f":"+'Décompte général'!J68","v":0}]
[null,null,{"$f":"+'Décompte général'!C69","v":"Minimum garanti"},null,null,null,null,{"$f":"+'Décompte général'!H69","v":0},{"$f":"+'Décompte général'!I69","v":0},{"$f":"+'Décompte général'!J69","v":0}]
[null,null,{"$f":"+'Décompte général'!C70","v":"Recette nette part producteur VOD France (après MG)"},null,null,null,null,{"$f":"+'Décompte général'!H70","v":0},{"$f":"+'Décompte général'!I70","v":0},{"$f":"+'Décompte général'!J70","v":0}]
[]
[null,{"$f":"+'Décompte général'!B72","v":"4/ EXPLOITATION TV FRANCE"}]
[null,null,{"$f":"+'Décompte général'!C73","v":"[Chaîne]"},null,null,null,null,{"$f":"+'Décompte général'!H73","v":0},{"$f":"+'Décompte général'!I73","v":0},{"$f":"+'Décompte général'!J73","v":0}]
[null,null,{"$f":"+'Décompte général'!C74","v":"Total Recette brute "},null,null,null,null,{"$f":"+'Décompte général'!H74","v":0},{"$f":"+'Décompte général'!I74","v":0},{"$f":"+'Décompte général'!J74","v":0}]
[null,null,{"$f":"+'Décompte général'!C75","v":"Commission de distribution"},null,null,null,null,{"$f":"+'Décompte général'!H75","v":0},{"$f":"+'Décompte général'!I75","v":0},{"$f":"+'Décompte général'!J75","v":0}]
[null,null,{"$f":"+'Décompte général'!C76","v":"Frais d'exploitation usuels (opposés au réel ou forfaitisés)"},null,null,null,null,{"$f":"+'Décompte général'!H76","v":0},{"$f":"+'Décompte général'!I76","v":0},{"$f":"+'Décompte général'!J76","v":0}]
[null,null,{"$f":"+'Décompte général'!C77","v":"Frais d'exploitation non usuels (opposés au réel)"},null,null,null,null,{"$f":"+'Décompte général'!H77","v":0},{"$f":"+'Décompte général'!I77","v":0},{"$f":"+'Décompte général'!J77","v":0}]
[null,null,{"$f":"+'Décompte général'!C78","v":"Recette nette part producteur TV France"},null,null,null,null,{"$f":"+'Décompte général'!H78","v":0},{"$f":"+'Décompte général'!I78","v":0},{"$f":"+'Décompte général'!J78","v":0}]
[]
[null,{"$f":"+'Décompte général'!B80","v":"5/ EXPLOITATION SVOD FRANCE"}]
[null,null,{"$f":"+'Décompte général'!C81","v":"[Plateforme]"},null,null,null,null,{"$f":"+'Décompte général'!H81","v":0},{"$f":"+'Décompte général'!I81","v":0},{"$f":"+'Décompte général'!J81","v":0}]
[null,null,{"$f":"+'Décompte général'!C82","v":"Total Recette brute "},null,null,null,null,{"$f":"+'Décompte général'!H82","v":0},{"$f":"+'Décompte général'!I82","v":0},{"$f":"+'Décompte général'!J82","v":0}]
[null,null,{"$f":"+'Décompte général'!C83","v":"Commission de distribution "},null,null,null,null,{"$f":"+'Décompte général'!H83","v":0},{"$f":"+'Décompte général'!I83","v":0},{"$f":"+'Décompte général'!J83","v":0}]
[null,null,{"$f":"+'Décompte général'!C84","v":"Frais d'exploitation usuels (opposés au réel ou forfaitisés)"},null,null,null,null,{"$f":"+'Décompte général'!H84","v":0},{"$f":"+'Décompte général'!I84","v":0},{"$f":"+'Décompte général'!J84","v":0}]
[null,null,{"$f":"+'Décompte général'!C85","v":"Frais d'exploitation non usuels (opposés au réel)"},null,null,null,null,{"$f":"+'Décompte général'!H85","v":0},{"$f":"+'Décompte général'!I85","v":0},{"$f":"+'Décompte général'!J85","v":0}]
[null,null,{"$f":"+'Décompte général'!C86","v":"Recette nette part producteur SVOD France"},null,null,null,null,{"$f":"+'Décompte général'!H86","v":0},{"$f":"+'Décompte général'!I86","v":0},{"$f":"+'Décompte général'!J86","v":0}]
[]
[null,{"$f":"+'Décompte général'!B88","v":"6/ AUTRES EXPLOITATIONS FRANCE"}]
[null,null,{"$f":"+'Décompte général'!C89","v":"Recette brute "},null,null,null,null,{"$f":"+'Décompte général'!H89","v":0},{"$f":"+'Décompte général'!I89","v":0},{"$f":"+'Décompte général'!J89","v":0}]
[null,null,{"$f":"+'Décompte général'!C90","v":"Commission de distribution "},null,null,null,null,{"$f":"+'Décompte général'!H90","v":0},{"$f":"+'Décompte général'!I90","v":0},{"$f":"+'Décompte général'!J90","v":0}]
[null,null,{"$f":"+'Décompte général'!C91","v":"Frais d'exploitation usuels (opposés au réel ou forfaitisés)"},null,null,null,null,{"$f":"+'Décompte général'!H91","v":0},{"$f":"+'Décompte général'!I91","v":0},{"$f":"+'Décompte général'!J91","v":0}]
[null,null,{"$f":"+'Décompte général'!C92","v":"Frais d'exploitation non usuels (opposés au réel)"},null,null,null,null,{"$f":"+'Décompte général'!H92","v":0},{"$f":"+'Décompte général'!I92","v":0},{"$f":"+'Décompte général'!J92","v":0}]
[null,null,{"$f":"+'Décompte général'!C93","v":"Recette nette part producteur autres exploitations France"},null,null,null,null,{"$f":"+'Décompte général'!H93","v":0},{"$f":"+'Décompte général'!I93","v":0},{"$f":"+'Décompte général'!J93","v":0}]
[]
[null,{"$f":"+'Décompte général'!B98","v":"7/ EXPLOITATION INTERNATIONALE HORS MERCHANDISING"}]
[]
[null,null,{"$f":"+'Décompte général'!C100","v":"Acheteur"},{"$f":"+'Décompte général'!D100","v":"Territoire"},null,{"$f":"+'Décompte général'!F100","v":"Exploitation"},{"$f":"+'Décompte général'!G100","v":"Montant vente"}]
[null,null,{"$f":"+'Décompte général'!C102","v":"[à compléter]"},null,null,null,null,{"$f":"+'Décompte général'!H102","v":0},{"$f":"+'Décompte général'!I102","v":0},{"$f":"+'Décompte général'!J102","v":0}]
[null,null,{"$f":"+'Décompte général'!C103","v":"[à compléter]"},null,null,null,null,{"$f":"+'Décompte général'!H103","v":0},{"$f":"+'Décompte général'!I103","v":0},{"$f":"+'Décompte général'!J103","v":0}]
[null,null,{"$f":"+'Décompte général'!C104","v":"Total encaissement brut"},null,null,null,null,{"$f":"+'Décompte général'!H104","v":0},{"$f":"+'Décompte général'!I104","v":0},{"$f":"+'Décompte général'!J104","v":0}]
[]
[null,null,{"$f":"+'Décompte général'!C106","v":"Commission de distribution "},null,null,null,null,{"$f":"+'Décompte général'!H106","v":0},{"$f":"+'Décompte général'!I106","v":0},{"$f":"+'Décompte général'!J106","v":0}]
[null,null,{"$f":"+'Décompte général'!C107","v":"Frais d'exploitation usuels (opposés au réel ou forfaitisés)"},null,null,null,null,{"$f":"+'Décompte général'!H107","v":0},{"$f":"+'Décompte général'!I107","v":0},{"$f":"+'Décompte général'!J107","v":0}]
[null,null,{"$f":"+'Décompte général'!C108","v":"Frais d'exploitation non usuels (opposés au réel)"},null,null,null,null,{"$f":"+'Décompte général'!H108","v":0},{"$f":"+'Décompte général'!I108","v":0},{"$f":"+'Décompte général'!J108","v":0}]
[null,null,{"$f":"+'Décompte général'!C109","v":"Minimum garanti"},null,null,null,null,{"$f":"+'Décompte général'!H109","v":0},{"$f":"+'Décompte général'!I109","v":0},{"$f":"+'Décompte général'!J109","v":0}]
[null,null,{"$f":"+'Décompte général'!C110","v":"Recette nette part producteur international hors merchandising (après MG)"},null,null,null,null,{"$f":"+'Décompte général'!H110","v":0},{"$f":"+'Décompte général'!I110","v":0},{"$f":"+'Décompte général'!J110","v":0}]
[]
[]
[]
[]
[]
[]
[null,{"$f":"+'Décompte général'!B112","v":"8/ EXPLOITATION MERCHANDISING INTERNATIONALE"}]
[]
[null,null,{"$f":"+'Décompte général'!C114","v":"Acheteur"},{"$f":"+'Décompte général'!D114","v":"Territoire"},null,null,{"$f":"+'Décompte général'!G114","v":"Montant vente"}]
[null,null,{"$f":"+'Décompte général'!C116","v":"[à compléter]"},null,null,null,null,{"$f":"+'Décompte général'!H116","v":0},{"$f":"+'Décompte général'!I116","v":0},{"$f":"+'Décompte général'!J116","v":0}]
[null,null,{"$f":"+'Décompte général'!C117","v":"[à compléter]"},null,null,null,null,{"$f":"+'Décompte général'!H117","v":0},{"$f":"+'Décompte général'!I117","v":0},{"$f":"+'Décompte général'!J117","v":0}]
[null,null,{"$f":"+'Décompte général'!C118","v":"Total encaissement brut"},null,null,null,null,{"$f":"+'Décompte général'!H118","v":0},{"$f":"+'Décompte général'!I118","v":0},{"$f":"+'Décompte général'!J118","v":0}]
[]
[null,null,{"$f":"+'Décompte général'!C120","v":"Commission de distribution "},null,null,null,null,{"$f":"+'Décompte général'!H120","v":0},{"$f":"+'Décompte général'!I120","v":0},{"$f":"+'Décompte général'!J120","v":0}]
[null,null,{"$f":"+'Décompte général'!C121","v":"Frais d'exploitation usuels (opposés au réel ou forfaitisés)"},null,null,null,null,{"$f":"+'Décompte général'!H121","v":0},{"$f":"+'Décompte général'!I121","v":0},{"$f":"+'Décompte général'!J121","v":0}]
[null,null,{"$f":"+'Décompte général'!C122","v":"Frais d'exploitation non usuels (opposés au réel)"},null,null,null,null,{"$f":"+'Décompte général'!H122","v":0},{"$f":"+'Décompte général'!I122","v":0},{"$f":"+'Décompte général'!J122","v":0}]
[null,null,{"$f":"+'Décompte général'!C123","v":"Minimum garanti"},null,null,null,null,{"$f":"+'Décompte général'!H123","v":0},{"$f":"+'Décompte général'!I123","v":0},{"$f":"+'Décompte général'!J123","v":0}]
[null,null,{"$f":"+'Décompte général'!C124","v":"Recette nette part producteur merchandising international (après MG)"},null,null,null,null,{"$f":"+'Décompte général'!H124","v":0},{"$f":"+'Décompte général'!I124","v":0},{"$f":"+'Décompte général'!J124","v":0}]

{"sheet":"Matrice décompte RNPP","index":10,"n_rows":154,"n_cols":14,"rows_kept":154,"cut":false,"hidden":false,"merged":[[13,1,13,9],[14,1,14,9],[1,1,1,4],[2,1,2,4],[3,1,3,4],[4,1,4,4],[11,1,11,9],[12,1,12,9]]}
[]
[null,"Expéditeur ",null,null,null,null,null,null,"Destinataire"]
[null,{"$f":"'Informations oeuvre'!C7","v":"[à compléter]"},null,null,null,null,null,null,{"$f":"N3&\" \"&+VLOOKUP($N$3,'Base de données ayants droit'!B:Y,2,FALSE)","v":"Exemple 2 "},null,null,null,"Ayant droit ","Exemple 2"]
[null,{"$f":"'Informations oeuvre'!C8","v":"[à compléter]"},null,null,null,null,null,null,{"$f":"+VLOOKUP($N$3,'Base de données ayants droit'!B:Y,5,FALSE)","v":"Sunset Boulevard"},null,null,null,"Ne pas modifier cette cellule"]
[null,{"$f":"'Informations oeuvre'!C9","v":"2025-12-31"},null,null,null,null,null,null,{"$f":"+VLOOKUP($N$3,'Base de données ayants droit'!B:Y,6,FALSE)","v":"75009 Paris"}]
[]
[null,{"$f":"'Informations oeuvre'!C2","v":"ŒUVRE"},null,null,null,null,null,{"$f":"\"DÉCOMPTE N°\"&'Informations oeuvre'!C11","v":"DÉCOMPTE N°0"}]
[null,{"$f":"\"Format / Saison : \"&'Informations oeuvre'!C4","v":"Format / Saison : [à compléter]"},null,null,null,null,null,{"$f":"\"Arrété au \"&TEXT('Informations oeuvre'!C10,\"jj/mm/aaaa\")","v":"Arrété au 31.12.2025"}]
[null,{"$f":"\"Réalisation : \"&'Informations oeuvre'!C3","v":"Réalisation : [à compléter]"}]
[null,{"$f":"\"N° ISAN : \"&'Informations oeuvre'!C5","v":"N° ISAN : [à compléter]"}]
[]
[null,{"$f":"+N3&\" \"&VLOOKUP(N3,'Base de données ayants droit'!B:Y,2, FALSE)","v":"Exemple 2 "}]
[null,{"$f":"\"Contrat \"&VLOOKUP(N3,'Base de données ayants droit'!B:Y,3,FALSE)","v":"Contrat Auteur.e scénariste"}]
[null,{"$f":"\"Signé en date du \"&TEXT(VLOOKUP(N3,'Base de données ayants droit'!B:W,11,FALSE),\"jj/mm/aa\")&IF(VLOOKUP(N3,'Base de données ayants droit'!B:W,12,FALSE)=TRUE,\" et son/ses avenant(s)\",\"\")","v":"Signé en date du 18/04/51 et son/ses avenant(s)"}]
[]
[null,null,null,null,null,null,null,"BASE","%","QP"]
[]
[null,"A/ JUSQU’À RECUPERATION DE XX"]
[]
[null,"1/ EXPLOITATION CINEMA France"]
[null,null,"Recette nette part producteur ",null,null,null,null,{"$f":"+J89","v":0},0,{"$f":"+H21*I21","v":0}]
[]
[null,"2/ EXPLOITATION VIDEO France"]
[null,null,"Recette nette part producteur ",null,null,null,null,{"$f":"+J97","v":0},0,{"$f":"+H24*I24","v":0}]
[]
[null,"3/ EXPLOITATION VOD France"]
[null,null,"Recette nette part producteur ",null,null,null,null,{"$f":"+J105","v":0},0,{"$f":"+H27*I27","v":0}]
[]
[null,"4/ EXPLOITATION TV France",null,null,null,null,{"$f":"+IF(VLOOKUP($N$3,'Base de données ayants droit'!B:Y,19,FALSE)=TRUE,\"Gestion collective\",\"\")","v":""}]
[null,null,"Recette nette part producteur ",null,null,null,null,{"$f":"+J113","v":0},0,{"$f":"+H30*I30","v":0}]
[]
[null,"5/ EXPLOITATION SVOD France"]
[null,null,"Recette nette part producteur ",null,null,null,null,{"$f":"+J121","v":0},0,{"$f":"+H33*I33","v":0}]
[]
[null,"6/ AUTRES EXPLOITATIONS France"]
[null,null,"Recette nette part producteur ",null,null,null,null,{"$f":"+J128","v":0},0,{"$f":"H36*I36","v":0}]
[]
[null,"7/ EXPLOITATION VIDEO/VOD/TV/SVOD INTERNATIONALE"]
[null,null,"Recette nette part producteur ",null,null,null,null,{"$f":"+J141","v":0},0,{"$f":"H39*I39","v":0}]
[]
[null,"8/ EXPLOITATION MERCHANDISING INTERNATIONALE"]
[null,null,"Recette nette part producteur ",null,null,null,null,{"$f":"+J154","v":0},0,{"$f":"H42*I42","v":0}]
[]
[null,"B/ APRES RECUPERATION DE XX"]
[]
[null,"9/ TOUS SUPPORTS "]
[null,null,"Recette nette part producteur",null,null,null,null,null,0]
[]
[null,"TOTAL",null,null,null,null,null,null,null,{"$f":"SUM(J19:J48)","v":0}]
[]
[null,"TOTAL À VERSER",null,null,null,null,null,null,null,{"$f":"IF(J49>0,J49,0)","v":0},null,null,"Ne pas modifier le nom de la cellule \"J48\" = \"TAV\""]
[]
[null,"À DÉDUIRE SITUATION PRÉCEDENTE",null,null,null,null,null,null,null,0,null,null,"Ne pas modifier le nom de la cellule \"J50\" = \"ADSP\""]
[]
[null,"À FACTURER H.T. SUR LA PÉRIODE",null,null,null,null,null,null,null,{"$f":"J51+J53","v":0}]
[]
[]
[]
[]
[]
[]
[]
[]
[]
[]
[]
[]
[]
[]
[]
[]
[]
[]
[]
[]
[]
[]
[]
[]
[null,{"$f":"'Informations oeuvre'!C2","v":"ŒUVRE"},null,null,null,null,null,null,null,{"$f":"TEXT('Informations oeuvre'!C10,\"jj/mm/aaaa\")","v":"31.12.2025"}]
[]
[null,{"$f":"'Décompte général'!B35","v":"RECETTES ISSUES DE L'EXPLOITATION"},null,null,null,null,null,{"$f":"+'Décompte général'!H35","v":"ANTÉRIEUR"},{"$f":"+'Décompte général'!I35","v":"PÉRIODE"},{"$f":"+'Décompte général'!J35","v":"CUMUL"},null,null,"Ne pas modifier le nom des cellules \"H73\" = \"ANTÉRIEUR\" et \"J73\" = \"CUMUL\""]
[null,{"$f":"'Décompte général'!B36","v":"1/ EXPLOITATION CINÉMA FRANCE"},null,null,null,null,{"$f":"'Décompte général'!G36","v":"[DISTRIBUTEUR]"}]
[null,null,{"$f":"'Décompte général'!C42","v":"Recette brute distributeur"},null,null,null,null,0,{"$f":"J84-H84","v":0},{"$f":"+'Décompte général'!J42","v":0}]
[null,null,{"$f":"+'Décompte général'!C43","v":"Commission de distribution"},null,null,null,{"$f":"+'Décompte général'!G43","v":0.3},0,0,{"$f":"J84*-G85","v":0}]
[null,null,{"$f":"+'Décompte général'!C44","v":"Frais d'exploitation usuels (opposés au réel ou forfaitisés)"},null,null,null,null,0,0,{"$f":"'Décompte général'!J44","v":0}]
[null,null,{"$f":"+'Décompte général'!C45","v":"Frais d'exploitation non usuels (opposés au réel)"},null,null,null,null,0,0,{"$f":"'Décompte général'!J45","v":0}]
[null,null,{"$f":"+'Décompte général'!C46","v":"Minimum garanti"},null,null,null,{"$f":"'Décompte général'!G46","v":0},0,0,{"$f":"-G88","v":0}]
[null,null,{"$f":"+'Décompte général'!C47","v":"Recette nette part producteur cinéma commercial France (après MG)"},null,null,null,null,0,0,{"$f":"SUM(J84:J88)","v":0}]
[]
[null,{"$f":"+'Décompte général'!B49","v":"2/ EXPLOITATION VIDÉO FRANCE"},null,null,null,null,{"$f":"'Décompte général'!G49","v":"[DISTRIBUTEUR]"}]
[null,null,{"$f":"'Décompte général'!C55","v":"Chiffre d'affaires brut éditeur"},null,null,null,null,{"$f":"'Décompte général'!H50","v":0},{"$f":"J92-H92","v":0},{"$f":"'Décompte général'!J55","v":0}]
[null,null,{"$f":"'Décompte général'!C56","v":"Commission de distribution"},null,null,null,{"$f":"'Décompte général'!G56","v":0.3},0,0,{"$f":"J92*-G93","v":0}]
[null,null,{"$f":"'Décompte général'!C57","v":"Frais d'exploitation usuels (opposés au réel ou forfaitisés)"},null,null,null,null,0,0,{"$f":"'Décompte général'!J57","v":0}]
[null,null,{"$f":"'Décompte général'!C58","v":"Frais d'exploitation non usuels (opposés au réel)"},null,null,null,null,0,0,{"$f":"'Décompte général'!J58","v":0}]
[null,null,{"$f":"'Décompte général'!C59","v":"Minimum garanti"},null,null,null,{"$f":"+'Décompte général'!G59","v":0},0,0,{"$f":"-G96","v":0}]
[null,null,{"$f":"'Décompte général'!C60","v":"Recette nette part producteur vidéo France (après MG)"},null,null,null,null,{"$f":"'Décompte général'!H52","v":0},0,{"$f":"SUM(J92:J96)","v":0}]
[]
[null,{"$f":"'Décompte général'!B62","v":"3/ EXPLOITATION VOD FRANCE"},null,null,null,null,{"$f":"'Décompte général'!G62","v":"[DISTRIBUTEUR]"}]
[null,null,{"$f":"+'Décompte général'!C65","v":"Chiffre d'affaires brut éditeur"},null,null,null,null,0,{"$f":"+J100-H100","v":0},{"$f":"+'Décompte général'!J65","v":0}]
[null,null,{"$f":"+'Décompte général'!C66","v":"Commission de distribution"},null,null,null,{"$f":"'Décompte général'!G56","v":0.3},0,{"$f":"J101-H101","v":0},{"$f":"J100*-G101","v":0}]
[null,null,{"$f":"+'Décompte général'!C67","v":"Frais d'exploitation usuels (opposés au réel ou forfaitisés)"},null,null,null,null,0,{"$f":"J102-H102","v":0},{"$f":"+'Décompte général'!J67","v":0}]
[null,null,{"$f":"+'Décompte général'!C68","v":"Frais d'exploitation non usuels (opposés au réel)"},null,null,null,null,0,{"$f":"J103-H103","v":0},{"$f":"+'Décompte général'!J68","v":0}]
[null,null,{"$f":"+'Décompte général'!C69","v":"Minimum garanti"},null,null,null,{"$f":"'Décompte général'!G69","v":0},{"$f":"'Décompte général'!H63","v":0},{"$f":"J104-H104","v":0},{"$f":"-G104","v":0}]
[null,null,{"$f":"+'Décompte général'!C70","v":"Recette nette part producteur VOD France (après MG)"},null,null,null,null,0,{"$f":"J105-H105","v":0},{"$f":"SUM(J100:J104)","v":0}]
[]
[null,{"$f":"+'Décompte général'!B72","v":"4/ EXPLOITATION TV FRANCE"},null,null,null,null,{"$f":"'Décompte général'!G72","v":"[DISTRIBUTEUR]"}]
[null,null,{"$f":"+'Décompte général'!C73","v":"[Chaîne]"},null,null,null,{"$f":"'Décompte général'!G73","v":0},{"$f":"'Décompte général'!H73","v":0},{"$f":"+J108-H108","v":0},{"$f":"'Décompte général'!J73","v":0}]
[null,null,{"$f":"+'Décompte général'!C74","v":"Total Recette brute "},null,null,null,null,0,0,{"$f":"'Décompte général'!J74","v":0}]
[null,null,{"$f":"+'Décompte général'!C75","v":"Commission de distribution"},null,null,null,{"$f":"+'Décompte général'!G75","v":0.3},0,0,{"$f":"J109*G110","v":0}]
[null,null,{"$f":"+'Décompte général'!C76","v":"Frais d'exploitation usuels (opposés au réel ou forfaitisés)"},null,null,null,null,0,0,{"$f":"'Décompte général'!J76","v":0}]
[null,null,{"$f":"+'Décompte général'!C77","v":"Frais d'exploitation non usuels (opposés au réel)"},null,null,null,null,0,0,{"$f":"'Décompte général'!J77","v":0}]
[null,null,{"$f":"+'Décompte général'!C78","v":"Recette nette part producteur TV France"},null,null,null,null,{"$f":"'Décompte général'!H74","v":0},0,{"$f":"SUM(J109:J112)","v":0}]
[]
[null,{"$f":"+'Décompte général'!B80","v":"5/ EXPLOITATION SVOD FRANCE"},null,null,null,null,{"$f":"'Décompte général'!G80","v":"[DISTRIBUTEUR]"}]
[null,null,{"$f":"'Décompte général'!C81","v":"[Plateforme]"},null,null,null,null,0,{"$f":"J116-H116","v":0},{"$f":"'Décompte général'!J81","v":0}]
[null,null,{"$f":"'Décompte général'!C82","v":"Total Recette brute "},null,null,null,null,0,0,{"$f":"'Décompte général'!J82","v":0}]
[null,null,{"$f":"'Décompte général'!C83","v":"Commission de distribution "},null,null,null,{"$f":"'Décompte général'!G83","v":0.3},0,0,{"$f":"J117*-G118","v":0}]
[null,null,{"$f":"'Décompte général'!C84","v":"Frais d'exploitation usuels (opposés au réel ou forfaitisés)"},null,null,null,null,{"$f":"'Décompte général'!H81","v":0},0,{"$f":"'Décompte général'!J84","v":0}]
[null,null,{"$f":"'Décompte général'!C85","v":"Frais d'exploitation non usuels (opposés au réel)"},null,null,null,null,{"$f":"'Décompte général'!H82","v":0},0,{"$f":"'Décompte général'!J85","v":0}]
[null,null,{"$f":"'Décompte général'!C86","v":"Recette nette part producteur SVOD France"},null,null,null,null,0,0,{"$f":"SUM(J117:J120)","v":0}]
[]
[null,{"$f":"'Décompte général'!B88","v":"6/ AUTRES EXPLOITATIONS FRANCE"},null,null,null,null,{"$f":"'Décompte général'!G88","v":"[DISTRIBUTEUR]"}]
[null,null,{"$f":"'Décompte général'!C89","v":"Recette brute "},null,null,null,null,{"$f":"'Décompte général'!H89","v":0},{"$f":"'Décompte général'!I89","v":0},{"$f":"'Décompte général'!J89","v":0}]
[null,null,{"$f":"'Décompte général'!C90","v":"Commission de distribution "},null,null,null,{"$f":"'Décompte général'!G90","v":0.3},{"$f":"'Décompte général'!H90","v":0},{"$f":"'Décompte général'!I90","v":0},{"$f":"J124*-G125","v":0}]
[null,null,{"$f":"+'Décompte général'!C91","v":"Frais d'exploitation usuels (opposés au réel ou forfaitisés)"},null,null,null,null,{"$f":"'Décompte général'!H91","v":0},{"$f":"'Décompte général'!I91","v":0},{"$f":"+'Décompte général'!J84","v":0}]
[null,null,{"$f":"'Décompte général'!C92","v":"Frais d'exploitation non usuels (opposés au réel)"},null,null,null,null,{"$f":"'Décompte général'!H92","v":0},{"$f":"'Décompte général'!I92","v":0},{"$f":"'Décompte général'!J92","v":0}]
[null,null,{"$f":"'Décompte général'!C93","v":"Recette nette part producteur autres exploitations France"},null,null,null,null,{"$f":"'Décompte général'!H93","v":0},{"$f":"'Décompte général'!I93","v":0},{"$f":"'Décompte général'!J93","v":0}]
[]
[null,{"$f":"'Décompte général'!B98","v":"7/ EXPLOITATION INTERNATIONALE HORS MERCHANDISING"}]
[]
[null,null,{"$f":"'Décompte général'!C100","v":"Acheteur"},{"$f":"'Décompte général'!D100","v":"Territoire"},null,{"$f":"'Décompte général'!F100","v":"Exploitation"},{"$f":"'Décompte général'!G100","v":"Montant vente"}]
[null,null,{"$f":"'Décompte général'!C102","v":"[à compléter]"},{"$f":"'Décompte général'!D102","v":"[à compléter]"},null,{"$f":"'Décompte général'!F102","v":"[à compléter]"},{"$f":"'Décompte général'!G102","v":"[à compléter]"},{"$f":"'Décompte général'!H103","v":0},{"$f":"'Décompte général'!I103","v":0},{"$f":"'Décompte général'!J103","v":0}]
[null,null,{"$f":"'Décompte général'!C103","v":"[à compléter]"},{"$f":"'Décompte général'!D103","v":"[à compléter]"},null,{"$f":"'Décompte général'!F103","v":"[à compléter]"},{"$f":"'Décompte général'!G103","v":"[à compléter]"},{"$f":"'Décompte général'!H104","v":0},{"$f":"'Décompte général'!I104","v":0},{"$f":"'Décompte général'!J104","v":0}]
[null,null,"Total encaissement brut ",null,null,null,null,{"$f":"'Décompte général'!H105","v":0},{"$f":"'Décompte général'!I105","v":0},{"$f":"'Décompte général'!J105","v":0}]
[]
[null,null,{"$f":"+'Décompte général'!C106","v":"Commission de distribution "},null,null,null,{"$f":"+'Décompte général'!G106","v":0.3},0,{"$f":"J137-H137","v":0},{"$f":"+J135*-G137","v":0}]
[null,null,{"$f":"+'Décompte général'!C107","v":"Frais d'exploitation usuels (opposés au réel ou forfaitisés)"},null,null,null,null,0,{"$f":"J138-H138","v":0},{"$f":"'Décompte général'!J107","v":0}]
[null,null,{"$f":"+'Décompte général'!C108","v":"Frais d'exploitation non usuels (opposés au réel)"},null,null,null,null,0,{"$f":"J139-H139","v":0},{"$f":"'Décompte général'!J108","v":0}]
[null,null,{"$f":"+'Décompte général'!C109","v":"Minimum garanti"},null,null,null,{"$f":"+'Décompte général'!G109","v":0},0,{"$f":"J140-H140","v":0},{"$f":"+-G140","v":0}]
[null,null,{"$f":"+'Décompte général'!C110","v":"Recette nette part producteur international hors merchandising (après MG)"},null,null,null,null,0,{"$f":"J141-H141","v":0},{"$f":"SUM(J135:J140)","v":0}]
[]
[null,{"$f":"'Décompte général'!B112","v":"8/ EXPLOITATION MERCHANDISING INTERNATIONALE"}]
[]
[null,null,{"$f":"'Décompte général'!C114","v":"Acheteur"},{"$f":"'Décompte général'!D114","v":"Territoire"},null,null,{"$f":"'Décompte général'!G114","v":"Montant vente"}]
[null,null,{"$f":"'Décompte général'!C116","v":"[à compléter]"},{"$f":"'Décompte général'!D116","v":"[à compléter]"},null,null,{"$f":"'Décompte général'!G116","v":"[à compléter]"},{"$f":"'Décompte général'!H116","v":0},{"$f":"'Décompte général'!I116","v":0},{"$f":"'Décompte général'!J116","v":0}]
[null,null,{"$f":"'Décompte général'!C117","v":"[à compléter]"},{"$f":"'Décompte général'!D117","v":"[à compléter]"},null,null,{"$f":"'Décompte général'!G117","v":"[à compléter]"},{"$f":"'Décompte général'!H117","v":0},{"$f":"'Décompte général'!I117","v":0},{"$f":"'Décompte général'!J117","v":0}]
[null,null,"Total encaissement brut",null,null,null,null,{"$f":"'Décompte général'!H118","v":0},{"$f":"'Décompte général'!I118","v":0},{"$f":"'Décompte général'!J118","v":0}]
[]
[null,null,{"$f":"'Décompte général'!C120","v":"Commission de distribution "},null,null,null,{"$f":"+'Décompte général'!G120","v":0.5},0,{"$f":"J150-H150","v":0},{"$f":"+'Décompte général'!J120","v":0}]
[null,null,{"$f":"'Décompte général'!C121","v":"Frais d'exploitation usuels (opposés au réel ou forfaitisés)"},null,null,null,null,0,{"$f":"J151-H151","v":0},{"$f":"+'Décompte général'!J121","v":0}]
[null,null,{"$f":"'Décompte général'!C122","v":"Frais d'exploitation non usuels (opposés au réel)"},null,null,null,null,0,{"$f":"J152-H152","v":0},{"$f":"+'Décompte général'!J122","v":0}]
[null,null,{"$f":"'Décompte général'!C123","v":"Minimum garanti"},null,null,null,{"$f":"+'Décompte général'!G123","v":0},0,{"$f":"J153-H153","v":0},{"$f":"+'Décompte général'!J123","v":0}]
[null,null,{"$f":"'Décompte général'!C124","v":"Recette nette part producteur merchandising international (après MG)"},null,null,null,null,0,{"$f":"J154-H154","v":0},{"$f":"+'Décompte général'!J124","v":0}]

{"sheet":"Matrice décompte amortissement","index":11,"n_rows":241,"n_cols":14,"rows_kept":241,"cut":false,"hidden":false,"merged":[[12,1,12,9],[1,1,1,4],[2,1,2,4],[3,1,3,4],[4,1,4,4],[11,1,11,9],[109,2,109,5],[13,1,13,9],[14,1,14,9],[81,1,82,6],[85,2,85,5],[86,2,86,6],[91,2,91,5],[92,2,92,6],[97,2,97,5],[98,2,98,6],[103,2,103,5],[104,2,104,6],[128,2,128,6],[110,2,110,6],[115,2,115,5],[116,2,116,6],[121,2,121,5],[122,2,122,6],[127,2,127,5]]}
[]
[null,"Expéditeur ",null,null,null,null,null,null,"Destinataire"]
[null,{"$f":"'Informations oeuvre'!C7","v":"[à compléter]"},null,null,null,null,null,null,{"$f":"N3&\" \"&+VLOOKUP($N$3,'Base de données ayants droit'!B:Y,2,FALSE)","v":"Exemple 2 "},null,null,null,"Ayant droit ","Exemple 2"]
[null,{"$f":"'Informations oeuvre'!C8","v":"[à compléter]"},null,null,null,null,null,null,{"$f":"+VLOOKUP($N$3,'Base de données ayants droit'!B:Y,5,FALSE)","v":"Sunset Boulevard"},null,null,null,"Ne pas modifier cette cellule"]
[null,{"$f":"'Informations oeuvre'!C9","v":"2025-12-31"},null,null,null,null,null,null,{"$f":"+VLOOKUP($N$3,'Base de données ayants droit'!B:Y,6,FALSE)","v":"75009 Paris"}]
[]
[null,{"$f":"'Informations oeuvre'!C2","v":"ŒUVRE"},null,null,null,null,null,{"$f":"\"DÉCOMPTE N°\"&'Informations oeuvre'!C11","v":"DÉCOMPTE N°0"}]
[null,{"$f":"\"Format / Saison : \"&'Informations oeuvre'!C4","v":"Format / Saison : [à compléter]"},null,null,null,null,null,{"$f":"\"Arrété au \"&TEXT('Informations oeuvre'!C10,\"jj/mm/aaaa\")","v":"Arrété au 31.12.2025"}]
[null,{"$f":"\"Réalisation : \"&'Informations oeuvre'!C3","v":"Réalisation : [à compléter]"}]
[null,{"$f":"\"N° ISAN : \"&'Informations oeuvre'!C5","v":"N° ISAN : [à compléter]"}]
[]
[null,{"$f":"+N3&\" \"&VLOOKUP(N3,'Base de données ayants droit'!B:Y,2, FALSE)","v":"Exemple 2 "}]
[null,{"$f":"\"Contrat \"&VLOOKUP(N3,'Base de données ayants droit'!B:Y,3,FALSE)","v":"Contrat Auteur.e scénariste"}]
[null,{"$f":"\"Signé en date du \"&TEXT(VLOOKUP(N3,'Base de données ayants droit'!B:W,11,FALSE),\"jj/mm/aa\")&IF(VLOOKUP(N3,'Base de données ayants droit'!B:W,12,FALSE)=TRUE,\" et son/ses avenant(s)\",\"\")","v":"Signé en date du 18/04/51 et son/ses avenant(s)"}]
[]
[null,{"$f":"F146","v":"ŒUVRE NON AMORTIE"},null,null,null,null,null,"BASE","%","QP"]
[]
[null,"9/ TOUS SUPPORTS "]
[null,null,"Recettes post amortissement",null,null,null,null,{"$f":"J146","v":0},0,{"$f":"H19*I19","v":0}]
[]
[null,"TOTAL",null,null,null,null,null,null,null,{"$f":"SUM(J17:J20)","v":0}]
[]
[null,"TOTAL À VERSER",null,null,null,null,null,null,null,{"$f":"J21","v":0},null,null,"Ne pas modifier le nom de la cellule \"J48\" = \"TAV\""]
[]
[null,"À DÉDUIRE SITUATION PRÉCEDENTE",null,null,null,null,null,null,null,0,null,null,"Ne pas modifier le nom de la cellule \"J50\" = \"ADSP\""]
[]
[null,"À FACTURER H.T. SUR LA PÉRIODE",null,null,null,null,null,null,null,{"$f":"J23+J25","v":0}]
[]
[]
[]
[]
[]
[]
[]
[]
[]
[]
[]
[]
[]
[]
[]
[]
[]
[]
[]
[]
[]
[]
[]
[]
[]
[]
[]
[]
[]
[]
[]
[]
[]
[]
[]
[]
[]
[]
[]
[]
[]
[]
[]
[]
[]
[]
[]
[]
[]
[]
[]
[]
[]
[null,{"$f":"\"CALCUL AMORTISSEMENT - \"&'Informations oeuvre'!C2&\" - \"&TEXT('Informations oeuvre'!C10,\"jj/mm/aaaa\")","v":"CALCUL AMORTISSEMENT - ŒUVRE - 31.12.2025"}]
[null,"Selon l'accord professionnel sur la transparence des comptes d'exploitation \ndes oeuvres audiovisuelles du 6 juillet 2017"]
[]
[]
[null,null,{"$f":"Amortissement!C12","v":"Recettes nettes par producteur Cinéma France après MG"},null,null,null,null,0,{"$f":"+J85-H85","v":0},{"$f":"Amortissement!J12","v":0}]
[null,null,"Reversements aux préfinanceurs visés aux points d, e et/ou i \nde l'article 5.1 de l'accord du 19 février 2016*",null,null,null,null,0,{"$f":"+J86-H86","v":0},{"$f":"Amortissement!J13","v":0}]
[null,null,{"$f":"Amortissement!C14","v":"Reversement aux auteurs au titre de la rémunération proportionnelle"},null,null,null,null,0,0,{"$f":"Amortissement!J14","v":0}]
[null,null,{"$f":"Amortissement!C15","v":"Rémunération complémentaires aux artistes interprètes"},null,null,null,null,0,0,{"$f":"Amortissement!J15","v":0}]
[null,{"$f":"Amortissement!B16","v":"Recettes Cinéma France en amortissement du coût du film "},null,null,null,null,null,0,0,{"$f":"Amortissement!J16","v":0}]
[]
[null,null,{"$f":"Amortissement!C18","v":"Recettes nettes par producteur Vidéo France après MG"},null,null,null,null,0,0,{"$f":"Amortissement!J18","v":0}]
[null,null,"Reversements aux préfinanceurs visés aux points d, e et/ou i \nde l'article 5.1 de l'accord du 19 février 2016*",null,null,null,null,0,0,{"$f":"Amortissement!J19","v":0}]
[null,null,{"$f":"Amortissement!C20","v":"Reversement aux auteurs au titre de la rémunération proportionnelle"},null,null,null,null,0,0,{"$f":"Amortissement!J20","v":0}]
[null,null,{"$f":"Amortissement!C21","v":"Rémunération complémentaires aux artistes interprètes"},null,null,null,null,0,0,{"$f":"Amortissement!J21","v":0}]
[null,{"$f":"Amortissement!B22","v":"Recettes Vidéo France en amortissement du coût du film "},null,null,null,null,null,0,0,{"$f":"Amortissement!J22","v":0}]
[]
[null,null,{"$f":"Amortissement!C24","v":"Recettes nettes par producteur VOD France après MG"},null,null,null,null,0,0,{"$f":"Amortissement!J24","v":0}]
[null,null,"Reversements aux préfinanceurs visés aux points d, e et/ou i \nde l'article 5.1 de l'accord du 19 février 2016*",null,null,null,null,0,0,{"$f":"Amortissement!J25","v":0}]
[null,null,{"$f":"Amortissement!C26","v":"Reversement aux auteurs au titre de la rémunération proportionnelle"},null,null,null,null,0,0,{"$f":"Amortissement!J26","v":0}]
[null,null,{"$f":"Amortissement!C27","v":"Rémunération complémentaires aux artistes interprètes"},null,null,null,null,0,0,{"$f":"Amortissement!J27","v":0}]
[null,{"$f":"Amortissement!B28","v":"Recettes VOD France en amortissement du coût du film "},null,null,null,null,null,0,0,{"$f":"Amortissement!J28","v":0}]
[]
[null,null,{"$f":"Amortissement!C30","v":"Recettes nettes par producteur TV France après MG"},null,null,null,null,0,0,{"$f":"Amortissement!J30","v":0}]
[null,null,"Reversements aux préfinanceurs visés aux points d, e et/ou i \nde l'article 5.1 de l'accord du 19 février 2016*",null,null,null,null,0,0,{"$f":"Amortissement!J31","v":0}]
[null,null,{"$f":"Amortissement!C32","v":"Reversement aux auteurs au titre de la rémunération proportionnelle"},null,null,null,null,0,0,{"$f":"Amortissement!J32","v":0}]
[null,null,{"$f":"Amortissement!C33","v":"Rémunération complémentaires aux artistes interprètes"},null,null,null,null,0,0,{"$f":"Amortissement!J33","v":0}]
[null,{"$f":"Amortissement!B34","v":"Recettes TV France en amortissement du coût du film "},null,null,null,null,null,0,0,{"$f":"Amortissement!J34","v":0}]
[]
[null,null,{"$f":"Amortissement!C36","v":"Recettes nettes par producteur SVOD France après MG"},null,null,null,null,0,0,{"$f":"Amortissement!J36","v":0}]
[null,null,"Reversements aux préfinanceurs visés aux points d, e et/ou i \nde l'article 5.1 de l'accord du 19 février 2016*",null,null,null,null,0,0,{"$f":"Amortissement!J37","v":0}]
[null,null,{"$f":"Amortissement!C38","v":"Reversement aux auteurs au titre de la rémunération proportionnelle"},null,null,null,null,0,0,{"$f":"Amortissement!J38","v":0}]
[null,null,{"$f":"Amortissement!C39","v":"Rémunération complémentaires aux artistes interprètes"},null,null,null,null,0,0,{"$f":"Amortissement!J39","v":0}]
[null,{"$f":"Amortissement!B40","v":"Recettes SVOD France en amortissement du coût du film "},null,null,null,null,null,0,0,{"$f":"Amortissement!J40","v":0}]
[]
[null,null,{"$f":"Amortissement!C42","v":"Recettes nettes par producteur Autres exploitations France après MG"},null,null,null,null,0,0,{"$f":"Amortissement!J42","v":0}]
[null,null,"Reversements aux préfinanceurs visés aux points d, e et/ou i \nde l'article 5.1 de l'accord du 19 février 2016*",null,null,null,null,0,0,{"$f":"Amortissement!J43","v":0}]
[null,null,{"$f":"Amortissement!C44","v":"Reversement aux auteurs au titre de la rémunération proportionnelle"},null,null,null,null,0,0,{"$f":"Amortissement!J44","v":0}]
[null,null,{"$f":"Amortissement!C45","v":"Rémunération complémentaires aux artistes interprètes"},null,null,null,null,0,0,{"$f":"Amortissement!J45","v":0}]
[null,{"$f":"Amortissement!B46","v":"Recettes Autres exploitations France en amortissement du coût du film "},null,null,null,null,null,0,0,{"$f":"Amortissement!J46","v":0}]
[]
[null,null,{"$f":"Amortissement!C48","v":"Recettes nettes par producteur International hors merchandising après MG"},null,null,null,null,0,0,{"$f":"Amortissement!J48","v":0}]
[null,null,"Reversements aux préfinanceurs visés aux points d, e et/ou i \nde l'article 5.1 de l'accord du 19 février 2016*",null,null,null,null,0,0,{"$f":"Amortissement!J49","v":0}]
[null,null,{"$f":"Amortissement!C50","v":"Reversement aux auteurs au titre de la rémunération proportionnelle"},null,null,null,null,0,0,{"$f":"Amortissement!J50","v":0}]
[null,null,{"$f":"Amortissement!C51","v":"Rémunération complémentaires aux artistes interprètes"},null,null,null,null,0,0,{"$f":"Amortissement!J51","v":0}]
[null,{"$f":"Amortissement!B52","v":"Recettes Video/VOD/TV/SVOD International en amortissement du coût du film "},null,null,null,null,null,0,0,{"$f":"Amortissement!J52","v":0}]
[]
[null,null,{"$f":"Amortissement!C54","v":"Recettes nettes par producteur Merchandising International après MG"},null,null,null,null,0,0,{"$f":"Amortissement!J54","v":0}]
[null,null,"Reversements aux préfinanceurs visés aux points d, e et/ou i \nde l'article 5.1 de l'accord du 19 février 2016*",null,null,null,null,0,0,{"$f":"Amortissement!J55","v":0}]
[null,null,{"$f":"Amortissement!C56","v":"Reversement aux auteurs au titre de la rémunération proportionnelle"},null,null,null,null,0,0,{"$f":"Amortissement!J56","v":0}]
[null,null,{"$f":"Amortissement!C57","v":"Rémunération complémentaires aux artistes interprètes"},null,null,null,null,0,0,{"$f":"Amortissement!J57","v":0}]
[null,{"$f":"Amortissement!B58","v":"Recettes Merchandising International en amortissement du coût du film "},null,null,null,null,null,0,0,{"$f":"Amortissement!J58","v":0}]
[]
[]
[null,{"$f":"Amortissement!B61","v":"Sommes des recettes encaissées pour toutes les exploitations"},null,null,null,null,null,0,0,{"$f":"Amortissement!J61","v":0}]
[]
[null,null,{"$f":"Amortissement!C63","v":"Frais juridiques, judiciaires, comptables (au titre de l'œuvre)"},null,null,null,null,0,0,{"$f":"Amortissement!J63","v":0}]
[null,null,{"$f":"Amortissement!C64","v":"Renouvellement/renégociation droits auteur (au titre de l'œuvre)"},null,null,null,null,0,0,{"$f":"Amortissement!J64","v":0}]
[null,null,{"$f":"Amortissement!C65","v":"Renouvellement/extension des élements additionnels (au titre de l'œuvre)"},null,null,null,null,0,0,{"$f":"Amortissement!J65","v":0}]
[null,null,{"$f":"Amortissement!C66","v":"Frais de stockage, conservation, entretien du support, restauration"},null,null,null,null,0,0,{"$f":"Amortissement!J66","v":0}]
[null,{"$f":"Amortissement!B67","v":"RNPP TOTALES"},null,null,null,null,null,0,0,{"$f":"Amortissement!J67","v":0}]
[]
[null,{"$f":"Amortissement!B69","v":"APPORT PRODUCTEUR après prise en compte du crédit d'impôt (cf. détail ci-dessous)"},null,null,null,null,null,0,0,{"$f":"Amortissement!J69","v":0}]
[]
[null,{"$f":"Amortissement!B71","v":"RNPP TOTALES NET DE L'APPORT PRODUCTEUR "},null,null,null,null,null,0,0,{"$f":"Amortissement!J71","v":0}]
[]
[null,{"$f":"+Amortissement!B73","v":"RNPP À REPARTIR"},null,null,null,{"$f":"Amortissement!F73","v":"ŒUVRE NON AMORTIE"},null,0,0,{"$f":"Amortissement!J73","v":0},null,null,"Sous déduction éventuel des rémunérations complémentaires revenant aux auteurs et aux artistes/interprètes après amortissement"]
[]
[null,"* d = autres apports français (région, PROCIREP…) / e = SOFICA et autres apports financiers / i = autres financements étrangers"]
[]
[]
[]
[]
[null,{"$f":"Amortissement!B78","v":"Apport producteur constaté au rendu des comptes définitifs"},null,null,null,null,{"$f":"Amortissement!G78","v":0}]
[]
[null,null,{"$f":"Amortissement!C80","v":"Montant du crédit d'impôt de l'œuvre"},null,null,null,{"$f":"Amortissement!G80","v":0}]
[null,null,{"$f":"Amortissement!C81","v":"Part de financement du/des diffuseurs français "}]
[null,null,{"$f":"Amortissement!C82","v":"dans l'œuvre (plafonnée à 75%)**"},null,null,null,{"$f":"Amortissement!G82","v":0}]
[null,null,{"$f":"Amortissement!C83","v":"Montant du crédit d'impôt venant couvrir l'apport producteur"},null,null,null,{"$f":"Amortissement!G83","v":0}]
[]
[null,{"$f":"Amortissement!B85","v":"Apport producteur constaté après prise en compte du crédit d'impôt"},null,null,null,null,{"$f":"Amortissement!G85","v":0}]
[null,{"$f":"Amortissement!B86","v":"**selon les modalités de l'article 6.4 de l'accord du 19 février 2016"}]
[]
[null,{"$f":"'Décompte général'!B35","v":"RECETTES ISSUES DE L'EXPLOITATION"}]
[null,{"$f":"'Décompte général'!B36","v":"1/ EXPLOITATION CINÉMA FRANCE"},null,null,null,null,{"$f":"'Décompte général'!G36","v":"[DISTRIBUTEUR]"}]
[null,null,{"$f":"+'Décompte général'!C42","v":"Recette brute distributeur"},null,null,null,null,0,{"$f":"J165-H165","v":0},{"$f":"+'Décompte général'!J42","v":0}]
[null,null,{"$f":"+'Décompte général'!C43","v":"Commission de distribution"},null,null,null,{"$f":"+'Décompte général'!G43","v":0.3},0,0,{"$f":"+'Décompte général'!J43","v":0}]
[null,null,{"$f":"+'Décompte général'!C44","v":"Frais d'exploitation usuels (opposés au réel ou forfaitisés)"},null,null,null,null,0,0,{"$f":"+'Décompte général'!J44","v":0}]
[null,null,{"$f":"+'Décompte général'!C45","v":"Frais d'exploitation non usuels (opposés au réel)"},null,null,null,null,0,0,{"$f":"+'Décompte général'!J45","v":0}]
[null,null,{"$f":"+'Décompte général'!C46","v":"Minimum garanti"},null,null,null,{"$f":"'Décompte général'!G46","v":0},0,0,{"$f":"+'Décompte général'!J46","v":0}]
[null,null,{"$f":"+'Décompte général'!C47","v":"Recette nette part producteur cinéma commercial France (après MG)"},null,null,null,null,0,0,{"$f":"+'Décompte général'!J47","v":0}]
[]
[null,{"$f":"+'Décompte général'!B49","v":"2/ EXPLOITATION VIDÉO FRANCE"},null,null,null,null,{"$f":"'Décompte général'!G49","v":"[DISTRIBUTEUR]"}]
[null,null,{"$f":"'Décompte général'!C55","v":"Chiffre d'affaires brut éditeur"},null,null,null,null,{"$f":"'Décompte général'!H50","v":0},{"$f":"J173-H173","v":0},{"$f":"+'Décompte général'!J50","v":0}]
[null,null,{"$f":"'Décompte général'!C56","v":"Commission de distribution"},null,null,null,{"$f":"'Décompte général'!G56","v":0.3},0,0,{"$f":"+'Décompte général'!J51","v":0}]
[null,null,{"$f":"'Décompte général'!C57","v":"Frais d'exploitation usuels (opposés au réel ou forfaitisés)"},null,null,null,null,0,0,{"$f":"+'Décompte général'!J52","v":0}]
[null,null,{"$f":"'Décompte général'!C58","v":"Frais d'exploitation non usuels (opposés au réel)"},null,null,null,null,0,0,{"$f":"+'Décompte général'!J53","v":0}]
[null,null,{"$f":"'Décompte général'!C59","v":"Minimum garanti"},null,null,null,{"$f":"+'Décompte général'!G59","v":0},0,0,{"$f":"+'Décompte général'!J54","v":0}]
[null,null,{"$f":"'Décompte général'!C60","v":"Recette nette part producteur vidéo France (après MG)"},null,null,null,null,{"$f":"'Décompte général'!H52","v":0},0,{"$f":"+'Décompte général'!J55","v":0}]
[]
[null,{"$f":"'Décompte général'!B62","v":"3/ EXPLOITATION VOD FRANCE"},null,null,null,null,{"$f":"'Décompte général'!G62","v":"[DISTRIBUTEUR]"}]
[null,null,{"$f":"+'Décompte général'!C65","v":"Chiffre d'affaires brut éditeur"},null,null,null,null,0,{"$f":"+J181-H181","v":0},{"$f":"+'Décompte général'!J58","v":0}]
[null,null,{"$f":"+'Décompte général'!C66","v":"Commission de distribution"},null,null,null,{"$f":"'Décompte général'!G56","v":0.3},0,{"$f":"J182-H182","v":0},{"$f":"+'Décompte général'!J59","v":0}]
[null,null,{"$f":"+'Décompte général'!C67","v":"Frais d'exploitation usuels (opposés au réel ou forfaitisés)"},null,null,null,null,0,{"$f":"J183-H183","v":0},{"$f":"+'Décompte général'!J60","v":0}]
[null,null,{"$f":"+'Décompte général'!C68","v":"Frais d'exploitation non usuels (opposés au réel)"},null,null,null,null,0,{"$f":"J184-H184","v":0},{"$f":"+'Décompte général'!J61","v":0}]
[null,null,{"$f":"+'Décompte général'!C69","v":"Minimum garanti"},null,null,null,{"$f":"'Décompte général'!G69","v":0},{"$f":"'Décompte général'!H63","v":0},{"$f":"J185-H185","v":0},{"$f":"+'Décompte général'!J62","v":0}]
[null,null,{"$f":"+'Décompte général'!C70","v":"Recette nette part producteur VOD France (après MG)"},null,null,null,null,0,{"$f":"J186-H186","v":0},{"$f":"+'Décompte général'!J63","v":0}]
[]
[null,{"$f":"+'Décompte général'!B72","v":"4/ EXPLOITATION TV FRANCE"},null,null,null,null,{"$f":"'Décompte général'!G72","v":"[DISTRIBUTEUR]"}]
[null,null,{"$f":"+'Décompte général'!C73","v":"[Chaîne]"},null,null,null,{"$f":"'Décompte général'!G73","v":0},{"$f":"'Décompte général'!H73","v":0},{"$f":"+J189-H189","v":0},{"$f":"+'Décompte général'!J66","v":0}]
[null,null,{"$f":"+'Décompte général'!C74","v":"Total Recette brute "},null,null,null,null,0,0,{"$f":"+'Décompte général'!J67","v":0}]
[null,null,{"$f":"+'Décompte général'!C75","v":"Commission de distribution"},null,null,null,{"$f":"+'Décompte général'!G75","v":0.3},0,0,{"$f":"+'Décompte général'!J68","v":0}]
[null,null,{"$f":"+'Décompte général'!C76","v":"Frais d'exploitation usuels (opposés au réel ou forfaitisés)"},null,null,null,null,0,0,{"$f":"+'Décompte général'!J69","v":0}]
[null,null,{"$f":"+'Décompte général'!C77","v":"Frais d'exploitation non usuels (opposés au réel)"},null,null,null,null,0,0,{"$f":"+'Décompte général'!J70","v":0}]
[null,null,{"$f":"+'Décompte général'!C78","v":"Recette nette part producteur TV France"},null,null,null,null,{"$f":"'Décompte général'!H74","v":0},0,{"$f":"+'Décompte général'!J71","v":0}]
[]
[null,{"$f":"+'Décompte général'!B80","v":"5/ EXPLOITATION SVOD FRANCE"},null,null,null,null,{"$f":"'Décompte général'!G80","v":"[DISTRIBUTEUR]"}]
[null,null,{"$f":"'Décompte général'!C81","v":"[Plateforme]"},null,null,null,null,0,{"$f":"J197-H197","v":0},{"$f":"+'Décompte général'!J74","v":0}]
[null,null,{"$f":"'Décompte général'!C82","v":"Total Recette brute "},null,null,null,null,0,0,{"$f":"+'Décompte général'!J75","v":0}]
[null,null,{"$f":"'Décompte général'!C83","v":"Commission de distribution "},null,null,null,{"$f":"'Décompte général'!G83","v":0.3},0,0,{"$f":"+'Décompte général'!J76","v":0}]
[null,null,{"$f":"'Décompte général'!C84","v":"Frais d'exploitation usuels (opposés au réel ou forfaitisés)"},null,null,null,null,{"$f":"'Décompte général'!H81","v":0},0,{"$f":"+'Décompte général'!J77","v":0}]
[null,null,{"$f":"'Décompte général'!C85","v":"Frais d'exploitation non usuels (opposés au réel)"},null,null,null,null,{"$f":"'Décompte général'!H82","v":0},0,{"$f":"+'Décompte général'!J78","v":0}]
[null,null,{"$f":"'Décompte général'!C86","v":"Recette nette part producteur SVOD France"},null,null,null,null,0,0,{"$f":"+'Décompte général'!J79","v":0}]
[null,null,null,null,null,null,null,null,null,{"$f":"+'Décompte général'!J80","v":0}]
[null,{"$f":"'Décompte général'!B88","v":"6/ AUTRES EXPLOITATIONS FRANCE"},null,null,null,null,{"$f":"'Décompte général'!G88","v":"[DISTRIBUTEUR]"},null,null,{"$f":"+'Décompte général'!J81","v":0}]
[null,null,{"$f":"'Décompte général'!C89","v":"Recette brute "},null,null,null,null,{"$f":"'Décompte général'!H89","v":0},{"$f":"'Décompte général'!I89","v":0},{"$f":"+'Décompte général'!J82","v":0}]
[null,null,{"$f":"'Décompte général'!C90","v":"Commission de distribution "},null,null,null,{"$f":"'Décompte général'!G90","v":0.3},{"$f":"'Décompte général'!H90","v":0},{"$f":"'Décompte général'!I90","v":0},{"$f":"+'Décompte général'!J83","v":0}]
[null,null,{"$f":"+'Décompte général'!C91","v":"Frais d'exploitation usuels (opposés au réel ou forfaitisés)"},null,null,null,null,{"$f":"'Décompte général'!H91","v":0},{"$f":"'Décompte général'!I91","v":0},{"$f":"+'Décompte général'!J84","v":0}]
[null,null,{"$f":"'Décompte général'!C92","v":"Frais d'exploitation non usuels (opposés au réel)"},null,null,null,null,{"$f":"'Décompte général'!H92","v":0},{"$f":"'Décompte général'!I92","v":0},{"$f":"+'Décompte général'!J85","v":0}]
[null,null,{"$f":"'Décompte général'!C93","v":"Recette nette part producteur autres exploitations France"},null,null,null,null,{"$f":"'Décompte général'!H93","v":0},{"$f":"'Décompte général'!I93","v":0},{"$f":"+'Décompte général'!J86","v":0}]
[]
[null,{"$f":"'Décompte général'!B98","v":"7/ EXPLOITATION INTERNATIONALE HORS MERCHANDISING"}]
[null,null,null,null,null,null,null,null,null,{"$f":"+'Décompte général'!J89","v":0}]
[null,null,{"$f":"'Décompte général'!C100","v":"Acheteur"},{"$f":"'Décompte général'!D100","v":"Territoire"},null,{"$f":"'Décompte général'!F100","v":"Exploitation"},{"$f":"'Décompte général'!G100","v":"Montant vente"}]
[null,null,{"$f":"'Décompte général'!C102","v":"[à compléter]"},{"$f":"'Décompte général'!D102","v":"[à compléter]"},null,{"$f":"'Décompte général'!F102","v":"[à compléter]"},{"$f":"'Décompte général'!G102","v":"[à compléter]"},{"$f":"'Décompte général'!H103","v":0},{"$f":"'Décompte général'!I103","v":0},{"$f":"+'Décompte général'!J91","v":0}]
[null,null,{"$f":"'Décompte général'!C103","v":"[à compléter]"},{"$f":"'Décompte général'!D103","v":"[à compléter]"},null,{"$f":"'Décompte général'!F103","v":"[à compléter]"},{"$f":"'Décompte général'!G103","v":"[à compléter]"},{"$f":"'Décompte général'!H104","v":0},{"$f":"'Décompte général'!I104","v":0},{"$f":"+'Décompte général'!J92","v":0}]
[null,null,"Total encaissement brut ",null,null,null,null,{"$f":"'Décompte général'!H105","v":0},{"$f":"'Décompte général'!I105","v":0},{"$f":"+'Décompte général'!J93","v":0}]
[]
[null,null,{"$f":"+'Décompte général'!C106","v":"Commission de distribution "},null,null,null,{"$f":"+'Décompte général'!G106","v":0.3},0,{"$f":"J218-H218","v":0},{"$f":"+'Décompte général'!J95","v":0}]
[null,null,{"$f":"+'Décompte général'!C107","v":"Frais d'exploitation usuels (opposés au réel ou forfaitisés)"},null,null,null,null,0,{"$f":"J219-H219","v":0},{"$f":"+'Décompte général'!J96","v":0}]
[null,null,{"$f":"+'Décompte général'!C108","v":"Frais d'exploitation non usuels (opposés au réel)"},null,null,null,null,0,{"$f":"J220-H220","v":0},{"$f":"+'Décompte général'!J97","v":0}]
[null,null,{"$f":"+'Décompte général'!C109","v":"Minimum garanti"},null,null,null,{"$f":"+'Décompte général'!G109","v":0},0,{"$f":"J221-H221","v":0},{"$f":"+'Décompte général'!J98","v":0}]
[null,null,{"$f":"+'Décompte général'!C110","v":"Recette nette part producteur international hors merchandising (après MG)"},null,null,null,null,0,{"$f":"J222-H222","v":0},{"$f":"+'Décompte général'!J99","v":0}]
[]
[]
[]
[]
[]
[]
[]
[null,{"$f":"'Décompte général'!B112","v":"8/ EXPLOITATION MERCHANDISING INTERNATIONALE"}]
[]
[null,null,{"$f":"'Décompte général'!C114","v":"Acheteur"},{"$f":"'Décompte général'!D114","v":"Territoire"},null,null,{"$f":"'Décompte général'!G114","v":"Montant vente"}]
[null,null,{"$f":"'Décompte général'!C116","v":"[à compléter]"},{"$f":"'Décompte général'!D116","v":"[à compléter]"},null,null,{"$f":"'Décompte général'!G116","v":"[à compléter]"},{"$f":"'Décompte général'!H116","v":0},{"$f":"'Décompte général'!I116","v":0},{"$f":"+'Décompte général'!J104","v":0}]
[null,null,{"$f":"'Décompte général'!C117","v":"[à compléter]"},{"$f":"'Décompte général'!D117","v":"[à compléter]"},null,null,{"$f":"'Décompte général'!G117","v":"[à compléter]"},{"$f":"'Décompte général'!H117","v":0},{"$f":"'Décompte général'!I117","v":0},{"$f":"+'Décompte général'!J105","v":0}]
[null,null,"Total encaissement brut",null,null,null,null,{"$f":"'Décompte général'!H118","v":0},{"$f":"'Décompte général'!I118","v":0},{"$f":"+'Décompte général'!J106","v":0}]
[]
[null,null,{"$f":"'Décompte général'!C120","v":"Commission de distribution "},null,null,null,{"$f":"+'Décompte général'!G120","v":0.5},0,{"$f":"J237-H237","v":0},{"$f":"+'Décompte général'!J108","v":0}]
[null,null,{"$f":"'Décompte général'!C121","v":"Frais d'exploitation usuels (opposés au réel ou forfaitisés)"},null,null,null,null,0,{"$f":"J238-H238","v":0},{"$f":"+'Décompte général'!J109","v":0}]
[null,null,{"$f":"'Décompte général'!C122","v":"Frais d'exploitation non usuels (opposés au réel)"},null,null,null,null,0,{"$f":"J239-H239","v":0},{"$f":"+'Décompte général'!J110","v":0}]
[null,null,{"$f":"'Décompte général'!C123","v":"Minimum garanti"},null,null,null,{"$f":"+'Décompte général'!G123","v":0},0,{"$f":"J240-H240","v":0},{"$f":"+'Décompte général'!J111","v":0}]
[null,null,{"$f":"'Décompte général'!C124","v":"Recette nette part producteur merchandising international (après MG)"},null,null,null,null,0,{"$f":"J241-H241","v":0},{"$f":"+'Décompte général'!J112","v":0}]